Cogmind - Beta 16.1 @@@ ROGUE MODE // 2026.05.01 @ 15:59:14 Player: szymekc Result: Destroyed by B-99 Colossus with Multirail Performance ------------- Evolutions (9) 4500 Regions Visited (37) 7400 Robots Destroyed (623) 3115 Value Destroyed (32208) 32208 Prototype IDs (86) 1720 Alien Tech Used (0) 0 Bonus (21313) 21313 TOTAL SCORE: 70256 Bonus ------- High Alert Combat Kills 7558 Follower Combat Kills 3554 Hunted by Unchained 1000 Destroyed Unchained 2000 Entered Garrisons 1600 Used RIF Installer 5500 Entered DSFs 500 Aligned with FarCom 300 Friendly Fire -699 Cogmind --------- Core Integrity 0/1600 Matter 292/300 Energy 694/700 System Corruption 22% Temperature Cool (0) Movement Core (50) Location -1/Command Parts ------- > --- POWER (3) -------- (None) > --- PROPULSION (6) --- (None) > --- UTILITY (13) ----- Experimental Energy Well Advanced Targeting Computer Experimental Targeting Computer Relay Coupler [C] (25) > --- WEAPON (3) ------- (None) > --- INVENTORY (5) ---- Experimental Energy Well (7) Layered Heavy Armor Plating Improved Potential Cannon Peak State ------------ > --- POWER ------------ Hybrid Antimatter Reactor Graviton Reactor Light Quantum Reactor > --- PROPULSION ------- Armored Heavy Treads Centrium Heavy Treads Biometal Heavy Treads > --- UTILITY ---------- Experimental Power Amplifier Experimental Cooling System Huge Storage Unit Experimental Optical Array IFF Parser Experimental Targeting Computer Experimental Targeting Computer Experimental Core Analyzer Advanced Cloaking Device Improved Weapon Shielding Relay Coupler [C] Relay Coupler [Sentry] Relay Coupler [Hunter] > --- WEAPON ----------- Improved Potential Cannon Nanosword > --- INVENTORY -------- Light Quantum Reactor Light Quantum Reactor Light Quantum Reactor Experimental Coolant Injector Experimental Coolant Injector Experimental Energy Well Experimental Energy Well Experimental Energy Well Relay Coupler [Specialist] Long-range Tractor Beam Heavy Proton Cannon Heavy Proton Cannon Heavy Proton Cannon Enhanced Nova Cannon Enhanced Nova Cannon Enhanced Nova Cannon Enhanced Nova Cannon Enhanced Nova Cannon Null Cannon Improved Potential Cannon Helical Railgun Helical Railgun Enhanced Hardcell Cannon Graviton Cannon [Rating: 216] Favorites ----------- Power Antimatter Reactor Engine Hybrid Deuterium Engine Power Core Fission Core Reactor Antimatter Reactor Propulsion Light Treads Treads Light Treads Utility Huge Storage Unit Device Experimental Heat Sink Storage Huge Storage Unit Processor Experimental Core Analyzer Hackware Relay Coupler [Sentry] Protection Improved Powered Armor Weapon Heavy Assault Rifle Energy Gun Heavy Beamcaster Energy Cannon Enhanced Nova Cannon Ballistic Gun Heavy Assault Rifle Ballistic Cannon Enhanced Hardcell Cannon Launcher Grenade Launcher Special Weapon Improved Remote Datajack Impact Weapon Shock Maul Slashing Weapon Katana Piercing Weapon Lance Special Melee Weapon Advanced Datajack Build | -11 -10 -10 -9 -9 -9 -8 -8 -8 -8 -8 -7 -7 -7 -7 -7 -7 -6 -6 -6 -6 -6 -6 -5 -5 -5 -5 -4 -4 -4 -4 -4 -3 -3 -2 -2 -1 -1 ------- Run | Yrd Mat Min Mat Min Exi Min Mat Gar Mat Gar Fac Was Fac Gar Fac Gar Fac Was Fac Gar Fac Gar Fac Was Fac Gar Fac Gar Fac Arm Lab Res Tes Res DSF Acc Com Slots Evolved 18 | . . . 2 . . . 2 . . . 2 . . . . . 2 . . . . . 2 . . . 2 . . . . 2 . 2 . 2 . Power 2 | . . . . . . . . . . . 1 . . . . . . . . . . . . . . . . . . . . 1 . . . . . Propulsion 4 | . . . 1 . . . 1 . . . . . . . . . . . . . . . . . . . 2 . . . . . . . . . . Utility 11 | . . . . . . . 1 . . . 1 . . . . . 2 . . . . . 2 . . . . . . . . 1 . 2 . 2 . Weapon 1 | . . . 1 . . . . . . . . . . . . . . . . . . . . . . . . . . . . . . . . . . Parts Attached 337 | 7 6 6 16 4 13 3 2 3 6 11 4 13 3 7 8 11 4 3 5 10 7 16 6 8 6 8 6 3 4 17 . 34 26 2 3 31 15 Power 47 | 1 . 1 2 . 3 . . . . . 1 3 . . 2 1 . 1 . . 1 2 . 2 . 2 . . 1 5 . 4 7 . 2 4 2 Engine 8 | 1 . 1 2 . 1 . . . . . . . . . 2 1 . . . . . . . . . . . . . . . . . . . . . Core 4 | . . . . . 1 . . . . . 1 . . . . . . . . . . 1 . 1 . . . . . . . . . . . . . Reactor 35 | . . . . . 1 . . . . . . 3 . . . . . 1 . . 1 1 . 1 . 2 . . 1 5 . 4 7 . 2 4 2 Propulsion 69 | 2 . . 4 1 1 1 1 1 4 7 . 2 . 5 . 1 . . . 3 2 2 . 4 . 2 2 . . 1 . 7 5 1 1 6 3 Treads 69 | 2 . . 4 1 1 1 1 1 4 7 . 2 . 5 . 1 . . . 3 2 2 . 4 . 2 2 . . 1 . 7 5 1 1 6 3 Leg . | . . . . . . . . . . . . . . . . . . . . . . . . . . . . . . . . . . . . . . Wheel . | . . . . . . . . . . . . . . . . . . . . . . . . . . . . . . . . . . . . . . Hover . | . . . . . . . . . . . . . . . . . . . . . . . . . . . . . . . . . . . . . . Flight . | . . . . . . . . . . . . . . . . . . . . . . . . . . . . . . . . . . . . . . Utility 124 | 2 2 2 5 2 5 . 1 2 1 1 2 1 . 1 4 5 3 2 4 4 2 8 3 2 2 2 1 3 1 5 . 16 8 1 . 14 7 Device 61 | 2 . . 3 2 4 . . . 1 1 1 . . . . 2 1 1 2 1 1 4 1 2 1 2 . 1 1 5 . 7 3 1 . 8 3 Storage 10 | . 2 2 . . . . . . . . 1 . . . . . . . . . . . . . . . . . . . . . 3 . . 1 1 Processor 13 | . . . 1 . 1 . . . . . . . . . . 1 . 1 . 1 . 1 1 . . . . . . . . 4 1 . . . 1 Hackware 30 | . . . 1 . . . . 2 . . . . . 1 4 1 2 . 2 2 1 3 1 . 1 . 1 2 . . . 5 . . . 1 . Protection 10 | . . . . . . . 1 . . . . 1 . . . 1 . . . . . . . . . . . . . . . . 1 . . 4 2 Artifact . | . . . . . . . . . . . . . . . . . . . . . . . . . . . . . . . . . . . . . . Weapon 97 | 2 4 3 5 1 4 2 . . 1 3 1 7 3 1 2 4 1 . 1 3 2 4 3 . 4 2 3 . 2 6 . 7 6 . . 7 3 Energy Gun 9 | 1 1 . . . . . . . . . . 3 2 1 . . . . . . . . . . . . . . . . . 1 . . . . . Energy Cannon 37 | . . . . . 1 1 . . . . . . . . 1 4 . . 1 1 1 2 2 . 3 1 1 . 1 4 . 2 4 . . 4 3 Ballistic Gun 21 | 1 . 2 3 1 3 1 . . 1 2 . 2 1 . . . . . . . . 1 . . 1 . . . . . . . . . . 2 . Ballistic Cannon 11 | . . . . . . . . . . 1 . . . . . . 1 . . 2 . . . . . 1 2 . 1 1 . 2 . . . . . Launcher 7 | . 1 1 1 . . . . . . . . 1 . . . . . . . . . 1 . . . . . . . 1 . 1 . . . . . Special Weapon 6 | . 1 . . . . . . . . . 1 . . . 1 . . . . . 1 . 1 . . . . . . . . . . . . 1 . Impact Weapon 1 | . . . . . . . . . . . . . . . . . . . . . . . . . . . . . . . . . 1 . . . . Slashing Weapon 3 | . 1 . 1 . . . . . . . . . . . . . . . . . . . . . . . . . . . . . 1 . . . . Piercing Weapon 1 | . . . . . . . . . . . . 1 . . . . . . . . . . . . . . . . . . . . . . . . . Special Melee Weapon 1 | . . . . . . . . . . . . . . . . . . . . . . . . . . . . . . . . 1 . . . . . Unidentified Prototypes 38 | . . 1 . 1 6 . . . . . . . 2 . . . . . . . . 4 1 2 . . . . 1 . . 5 13 . . 2 . Corrupted Parts 1 | . . 1 . . . . . . . . . . . . . . . . . . . . . . . . . . . . . . . . . . . System Corruption 8 | . . 8 . . . . . . . . . . . . . . . . . . . . . . . . . . . . . . . . . . . Parts Lost 81 | . 2 4 . 1 1 . . 1 1 2 . . . . 2 6 . . 2 5 . 1 . . . . . . . 3 . 21 . . 1 13 15 Power 12 | . . 1 . . . . . . . . . . . . 1 1 . . . . . 1 . . . . . . . . . 4 . . . 2 2 Propulsion 24 | . . 1 . . 1 . . 1 . . . . . . . 1 . . . . . . . . . . . . . 1 . 8 . . . 4 7 Utility 29 | . . 1 . 1 . . . . . 2 . . . . 1 3 . . . 2 . . . . . . . . . 1 . 5 . . 1 6 6 Weapon 16 | . 2 1 . . . . . . 1 . . . . . . 1 . . 2 3 . . . . . . . . . 1 . 4 . . . 1 . Highest Loss Streak 13 | . 1 3 . 1 1 . . 1 1 1 . . . . 1 2 . . 2 2 . 1 . . . . . . . 2 . 13 . . 1 5 13 To Critical Strikes 4 | . . . . . . . . . . . . . . . . . . . . . . . . . . . . . . . . 1 . . . 3 . Average Backups 19 | 1 8 8 14 19 19 19 19 19 19 19 19 22 20 20 21 22 21 21 21 22 24 22 22 22 23 22 22 22 23 23 23 20 12 21 23 20 20 Power 1 | . 1 1 2 3 4 3 2 2 1 1 . . . . . 1 . . 1 2 1 . . . . . . . . 1 1 . 2 5 4 2 1 Propulsion 1 | . . . 1 2 2 1 1 . 1 2 2 3 2 1 2 1 1 1 2 . . 1 2 1 2 2 1 2 2 1 . . . . . . . Utility 9 | . 3 4 5 4 6 9 10 12 11 10 10 12 10 11 10 11 12 11 10 14 17 13 13 13 13 11 12 12 13 13 14 11 3 4 4 5 4 Weapon 6 | . 1 2 5 8 5 5 5 5 4 5 5 5 7 7 7 7 7 6 6 5 4 6 7 7 7 7 8 7 7 6 8 7 6 10 14 12 12 Tool/Special . | . . . . . . . . . . . . . . . . . . . . . . . . . . . . . . . . . . . . . . Unused Backups 94 | . . 1 11 . 10 1 1 . . 1 . 5 1 2 . 2 . 1 . . 7 21 1 . . . . . . 3 1 4 1 . 1 8 11 Power 16 | . . . 2 . 5 1 . . . . . . . . . 2 . . . . 1 1 . . . . . . . 1 . . . . 1 1 1 Propulsion 9 | . . . 1 . 2 . . . . . . 1 . . . . . 1 . . . 3 . . . . . . . . 1 . . . . . . Utility 50 | . . . 5 . 1 . 1 . . 1 . 4 . 2 . . . . . . 6 16 1 . . . . . . 1 . 4 1 . . 4 3 Weapon 17 | . . . 3 . 2 . . . . . . . 1 . . . . . . . . 1 . . . . . . . 1 . . . . . 3 6 Tool/Special 2 | . . 1 . . . . . . . . . . . . . . . . . . . . . . . . . . . . . . . . . . 1 Average Slot Usage (%) 88 | . 97 93 94 99 91 100 99 99 100 100 99 89 83 86 83 83 85 86 84 83 90 86 87 87 88 87 83 83 84 83 84 78 82 93 88 80 89 Engine 4 | . 14 14 10 11 11 11 9 9 3 . . . . . 5 15 13 9 6 6 6 3 . . . . . . . . . . . . . . . Reactor 6 | . . . . . . . . . 5 9 7 11 15 15 8 . . 3 6 6 6 5 5 8 11 10 10 10 10 9 10 10 13 12 13 10 11 Treads 19 | . 28 27 29 33 33 33 36 35 36 36 30 19 15 17 15 15 13 13 13 12 17 13 11 11 11 11 15 15 15 14 15 14 13 20 18 12 18 Device 10 | . 15 13 12 10 11 11 13 7 5 4 14 15 15 12 14 14 13 7 6 5 . 9 11 10 9 9 5 5 5 8 10 8 4 15 14 13 5 Storage 6 | . 12 7 8 11 11 11 9 9 9 9 7 7 7 7 7 7 6 6 6 6 6 6 5 5 5 5 5 5 5 5 5 3 3 4 4 5 7 Processor 6 | . . . . . . . . . . . . . . . . 3 6 11 6 12 13 9 10 11 11 11 10 10 10 10 10 14 19 17 17 16 18 Hackware 8 | . . . . . . . . 2 12 9 7 3 . 1 6 . 12 13 18 13 19 13 17 17 18 18 19 21 21 16 15 14 13 8 8 11 8 Protection 1 | . . . . . . . 4 7 . 4 . 3 6 7 1 3 . . . . . . . . . . . . . . . . . . 2 2 8 Energy Gun 2 | . 17 4 . . . . . . . . . 5 5 3 12 8 . . . . . . . . . . . . . . . . . . . . . Energy Cannon 4 | . . . . . . 12 18 18 10 1 . . . . . 9 13 6 12 5 5 8 12 6 9 . 1 . 1 4 10 5 4 4 7 4 6 Ballistic Gun 8 | . 4 19 31 32 17 9 . 4 10 18 18 13 14 14 5 . . 11 . . . 1 . 9 1 10 4 . . 1 . 1 . . . . . Ballistic Cannon 1 | . . . . . . . . . . . . . . . . . . . . 3 6 2 . . . 1 5 13 10 7 5 2 6 8 . . . Slashing Weapon 1 | . 3 1 . . 7 11 9 4 5 6 3 1 . . . . . . . . . . . . . . . . . . . . . . . 2 3 Piercing Weapon 1 | . . . . . . . . . . . . 2 1 3 1 4 1 . 1 5 5 4 . . 4 1 . . . . . . . . . . . Peak Build Rating 216 | 9 9 14 20 24 46 35 33 32 35 38 48 87 83 91 91 89 92 106 106 105 97 121 117 130 127 147 163 159 157 169 166 182 179 189 204 216 192 Average Rating 90 | 5 7 7 16 19 31 27 31 31 33 35 42 66 79 83 82 86 90 102 93 97 91 103 114 127 122 138 153 155 153 164 166 148 147 182 197 188 177 On Entrance 90 | . 9 8 14 20 20 28 28 32 32 35 38 43 77 83 90 78 88 90 106 93 97 95 107 117 122 124 142 153 157 152 166 166 88 171 189 200 184 Avg Prop Armor Cover (%) 17 | . 11 11 14 7 . . . . . . . . . . . . . . . . . . . 11 . . . . . 9 9 19 34 . . 37 32 Naked Turns . | . . . . . . . . . . . . . . . . . . . . . . . . . . . . . . . . . . . . . . Heaviest Build 203 | 10 31 48 59 59 66 60 68 70 67 72 129 147 106 146 143 133 125 128 131 131 128 145 145 153 144 150 164 164 158 193 182 203 170 172 172 170 197 Greatest Support 230 | 40 40 20 60 60 60 60 80 80 80 80 80 140 140 150 150 150 150 150 150 150 140 150 150 150 150 150 225 220 220 230 155 188 192 194 198 215 184 Greatest Overweight (x) 11 | . 1 11 . 1 1 . . . . . 1 1 . . . . . . . . 1 . . 1 . . . . . 1 1 1 2 . . 1 1 Average Overweight (x) . | . . . . . . . . . . . 1 . . . . . . . . . . . . . . . . . . . 1 . . . . . . Largest Inventory Capacity 25 | 5 15 20 20 20 20 20 20 20 20 20 25 25 20 25 25 25 25 25 25 25 25 25 25 25 25 25 25 25 25 25 25 25 25 25 25 25 25 Average Capacity 21 | 5 14 10 16 20 20 20 20 20 20 20 21 24 20 21 25 25 25 25 25 25 25 25 25 25 25 25 25 25 25 25 25 21 24 25 25 23 24 Most Carried 25 | 3 12 15 20 20 20 20 20 20 20 20 21 25 20 25 25 25 23 25 25 25 25 25 25 25 25 25 25 25 25 25 24 25 25 25 25 25 25 Average Carried 20 | 1 8 9 14 19 19 19 19 19 19 19 19 22 19 21 23 24 22 23 23 23 24 24 24 24 25 24 24 24 25 24 23 20 13 23 24 21 22 Final Capacity 25 | 5 15 15 20 20 20 20 20 20 20 20 25 20 20 25 25 25 25 25 25 25 25 25 25 25 25 25 25 25 25 25 25 5 25 25 25 25 5 Final Carried 25 | 3 12 11 20 20 20 19 20 19 20 20 21 20 20 25 24 24 22 25 24 24 25 25 25 25 25 24 25 25 25 24 23 5 24 25 24 23 5 Class Distribution -------------------- 18% | Botlord-Tank 17% | Scavenger-Mutant 17% | Mutant 14% | Botlord-Mutant 11% | Scavenger-Tank 7% | Scavenger-Gunner 3% | Bothacker-Tank Dominant Class ---------------- Mutant | -10/Materials Mutant | -10/Mines Scavenger-Tank | -9/Materials Scavenger-Gunner | -9/Mines Mutant | -9/Exiles Mutant | -8/Mines Mutant | -8/Materials Mutant | -8/Garrison Scavenger-Mutant | -8/Materials Scavenger-Mutant | -8/Garrison Scavenger-Mutant | -7/Factory Scavenger-Tank | -7/Waste Scavenger-Tank | -7/Factory Bothacker-Mutant | -7/Garrison Scavenger-Tank | -7/Factory Botlord-Mutant | -7/Garrison Botlord-Tank | -6/Factory Botlord-Tank | -6/Waste Botlord-Tank | -6/Factory Scavenger-Mutant | -6/Garrison Botlord-Mutant | -6/Factory Botlord-Mutant | -6/Garrison Botlord-Tank | -5/Factory Botlord-Tank | -5/Waste Botlord-Mutant | -5/Factory Botlord-Tank | -5/Garrison Botlord-Tank | -4/Factory Botlord-Tank | -4/Garrison Botlord-Tank | -4/Factory Botlord-Tank | -4/Armory Tank | -4/Lab Botlord-Mutant | -3/Research Scavenger-Gunner | -3/Testing Scavenger-Gunner | -2/Research Scavenger-Gunner | -2/DSF Scavenger-Mutant | -1/Access Scavenger-Mutant | -1/Command Resources | -11 -10 -10 -9 -9 -9 -8 -8 -8 -8 -8 -7 -7 -7 -7 -7 -7 -6 -6 -6 -6 -6 -6 -5 -5 -5 -5 -4 -4 -4 -4 -4 -3 -3 -2 -2 -1 -1 ----------- Run | Yrd Mat Min Mat Min Exi Min Mat Gar Mat Gar Fac Was Fac Gar Fac Gar Fac Was Fac Gar Fac Gar Fac Was Fac Gar Fac Gar Fac Arm Lab Res Tes Res DSF Acc Com Matter Collected 21621 | 245 238 99 1308 721 357 336 17 423 406 858 45 288 586 1076 254 472 18 271 279 1151 257 945 118 370 286 1372 216 1638 202 3021 . 1700 823 . 166 748 311 Remotely 2155 | . . . . . . . . . . . . . . . . . . . . . . . . . . 430 . 704 . 693 . 328 . . . . . Salvage Created 29362 | 40 627 141 708 562 316 267 17 494 602 1296 45 171 637 2040 523 1507 173 1835 427 1219 283 1970 270 350 581 1006 190 724 189 1825 . 3165 976 156 861 2418 751 Parts 1426 | 7 36 14 56 27 50 20 1 31 31 91 9 3 42 73 23 75 13 36 30 85 17 89 8 6 31 37 5 27 15 92 . 145 37 5 15 119 25 Haulers Intercepted 17 | . 2 . 4 . . . . . 2 . . . 2 . . . . . . . . . . . . . . . . . . 1 3 . . 3 . Recyclers Shooed 9 | 1 . . . . . . . . 2 . . . . . 1 . . . . . . . . . . . . . . . . 3 . . . 1 1 Parts Field Recycled . | . . . . . . . . . . . . . . . . . . . . . . . . . . . . . . . . . . . . . . Retrieved Matter . | . . . . . . . . . . . . . . . . . . . . . . . . . . . . . . . . . . . . . . Parts Self-Destructed . | . . . . . . . . . . . . . . . . . . . . . . . . . . . . . . . . . . . . . . Prevented . | . . . . . . . . . . . . . . . . . . . . . . . . . . . . . . . . . . . . . . Parts Restored . | . . . . . . . . . . . . . . . . . . . . . . . . . . . . . . . . . . . . . . Kills | -11 -10 -10 -9 -9 -9 -8 -8 -8 -8 -8 -7 -7 -7 -7 -7 -7 -6 -6 -6 -6 -6 -6 -5 -5 -5 -5 -4 -4 -4 -4 -4 -3 -3 -2 -2 -1 -1 ------- Run | Yrd Mat Min Mat Min Exi Min Mat Gar Mat Gar Fac Was Fac Gar Fac Gar Fac Was Fac Gar Fac Gar Fac Was Fac Gar Fac Gar Fac Arm Lab Res Tes Res DSF Acc Com Combat Hostiles Destroyed 509 | . 16 7 13 14 6 4 . 20 8 34 . . 8 25 9 44 4 6 8 34 5 22 5 . 8 22 3 29 2 38 . 34 13 . 12 45 11 Melee 2 | . . . . . 1 . . . . . . . . . . . . . . . . . . . . . . . . 1 . . . . . . . Guns 181 | . 8 1 9 14 . 2 . 4 3 22 . . 8 25 9 27 . 6 . . . 4 . . 3 15 1 . . 8 . 9 . . . 3 . Cannons 201 | . . . . . . 2 . 11 3 4 . . . . . 16 4 . 6 18 5 13 5 . 4 7 2 20 2 26 . 10 8 . 7 20 8 AOE 102 | . 8 5 4 . 5 . . 5 2 8 . . . . . . . . . 15 . 4 . . . . . 9 . . . 7 4 . 4 19 3 Classes Destroyed 29 | 2 5 1 2 1 2 2 . . 1 1 . 1 1 1 . . . 1 . 1 . 1 . . . . . . . 3 . 1 . . 1 1 . Worker 32 | 1 3 . . . . . . . 1 . 2 . 3 . . . 1 . . . 1 . . . 2 . . . 3 . . 3 2 . . 7 3 Builder 21 | . . . 1 . . . . . 1 . 1 . 1 . 1 . 1 . 1 . . . . . . . . . . . . 2 1 . . 11 . Tunneler 6 | 2 . . . 2 . 2 . . . . . . . . . . . . . . . . . . . . . . . . . . . . . . . Hauler 17 | . 2 . 4 . . . . . 2 . . . 2 . . . . . . . . . . . . . . . . . . 1 3 . . 3 . Recycler 12 | . . . . . . . . . 3 . . . . . . . . . . . . . . . 1 . . . . . . 5 . 1 . 1 1 Carrier 2 | . . . . . . . . . . . . . . . . . . . . . . . . . . . . . . . . . . . 1 1 . Operator 6 | . 1 . 1 . . . 1 . . . . . 1 . . . . . . . . . . . . . . . . . . . 1 . . 1 . Drone 14 | . . . . . . . . . . . . . . . . . . . . . . . . . . . . . . . . . . . . 14 . Turret 1 | . . . . . 1 . . . . . . . . . . . . . . . . . . . . . . . . . . . . . . . . Watcher 9 | . 2 . 1 . . . . . . . . . 1 . . . . . . . . . 1 . . . . . . 1 . 1 1 . . 1 . Swarmer 140 | . 6 5 4 2 . . . 13 3 7 . . 3 . 1 26 3 . 3 21 . 6 . . 1 11 . 14 . 11 . . . . . . . Saboteur 2 | . . . . . . . . . . . . . . . . . . . . . . . . . . . . . . 2 . . . . . . . Grunt 148 | . 10 . 2 10 . 2 . 6 1 15 . . 2 15 5 11 . . . 3 . 11 3 . 3 9 1 10 . 3 . 5 4 . 7 5 5 Brawler 11 | . . . . . . 1 . . . . . . . 1 2 . . . . . 2 . . . . . 1 1 . . . . . . 1 1 1 Duelist 11 | . . . . 1 . . . . . 1 . . . 2 . . . . . . 1 1 . . . . . . . 4 . . . . . 1 . Protector 5 | . . . . . . . . . . . . . . . . . . . . . . . . . . . . . . 2 . 2 . . . 1 . Sentry 47 | . . . 7 . . . . 1 3 8 . . 2 2 1 2 1 . 2 8 . . . . . 2 1 1 2 1 . 2 . . . . 1 Specialist 11 | . . . . . . . . . . . . . . 1 . . . . . 1 . . . . . . . . . 4 . 2 . . 3 . . Hunter 39 | . . . . . . 1 . . 1 . . . . . . . . . 2 . . 1 . . 4 2 . . . 5 . 11 6 . . 6 . Programmer 58 | . . . . . . . . . . 4 . . 1 3 . 5 . . 1 . 2 1 2 . . . . 3 . 6 . 9 2 . . 17 2 Heavy 4 | . . . . . . . . . . . . . . . . . . . . . . . . . . . . . . 1 . 2 . . 1 . . Behemoth 4 | . . . . . . . . . . . . . . . . . . . . 2 1 . . . . . . . . . . 1 . . . . . Compactor 6 | . . . . . . . . . . . . . . . . . . 6 . . . . . . . . . . . . . . . . . . . Striker 2 | . . . . . . . . . . . . . . . . . . . . . . . . . . . . . . . . 1 . . . . 1 Executioner 3 | . . . . . . . . . . . . . . . . . . . . . . 2 . . . . . . . . . . . . . . 1 Zionite 2 | . . . . . 2 . . . . . . . . . . . . . . . . . . . . . . . . . . . . . . . . Assembled 7 | . . 1 . 1 5 . . . . . . . . . . . . . . . . . . . . . . . . . . . . . . . . Surgeon 2 | . . . . . . . . . . . . . 1 1 . . . . . . . . . . . . . . . . . . . . . . . Martyr 1 | . . . . . . . . . . . . 1 . . . . . . . . . . . . . . . . . . . . . . . . . Guerrilla 1 | . . . . . . . . . . . . . . 1 . . . . . . . . . . . . . . . . . . . . . . . Best Kill Streak 14 | 2 5 3 4 5 5 4 1 8 4 6 2 . 6 6 4 7 4 5 5 10 2 4 3 . 5 5 2 12 1 9 . 14 5 1 9 14 7 Combat Bots Only 12 | . 3 3 4 4 5 3 . 8 3 6 . . 3 6 3 7 3 5 5 10 2 4 3 . 5 5 2 12 1 9 . 9 3 . 8 9 6 Max Kills in Single Turn 4 | 2 3 3 4 1 2 2 1 2 2 3 1 1 3 1 1 2 2 3 1 4 1 2 1 . 1 3 1 3 1 1 . 2 3 1 3 3 2 Gunslinging 1 | . . . . . . . . . . 1 . . 1 . . 1 . 1 . . . . . . . . . . . . . . . . . . . Exploded 4 | . 2 3 4 . 2 . . 2 1 3 . . . . . . . . . 4 . 2 . . . . . 3 . . . 2 1 . 2 2 1 Melee 1 | . . . . . 1 . . . . . . . . . . . . . . . . . . . . . . . . 1 . . . . . . . Uniques/NPCs Destroyed 7 | . . 1 . . 4 . . . . . . . . . . . . . . . . . . . . . . . . . . . 1 . . 1 . YI-UF0 (-10/Mines) 8R-AWN (-9/Exiles) EX-DEC (-9/Exiles) EX-BIN (-9/Exiles) EX-HEX (-9/Exiles) BL-1NK (-3/Testing) QV-33N (-1/Access) Combat | -11 -10 -10 -9 -9 -9 -8 -8 -8 -8 -8 -7 -7 -7 -7 -7 -7 -6 -6 -6 -6 -6 -6 -5 -5 -5 -5 -4 -4 -4 -4 -4 -3 -3 -2 -2 -1 -1 -------- Run | Yrd Mat Min Mat Min Exi Min Mat Gar Mat Gar Fac Was Fac Gar Fac Gar Fac Was Fac Gar Fac Gar Fac Was Fac Gar Fac Gar Fac Arm Lab Res Tes Res DSF Acc Com Hostile Shots Fired 3112 | . 69 9 50 32 22 12 . 83 32 112 4 . 90 201 62 209 28 . 96 288 13 31 18 . 12 33 25 89 4 253 . 686 63 . 48 210 228 Missed 998 | . 16 2 15 5 8 5 . 16 9 29 1 . 29 58 13 59 10 . 33 97 6 13 8 . 2 10 7 20 . 79 . 292 18 . 19 61 58 Hits 2114 | . 53 7 35 27 14 7 . 67 23 83 3 . 61 143 49 150 18 . 63 191 7 18 10 . 10 23 18 69 4 174 . 394 45 . 29 149 170 Melee 25 | . . . . 7 . . . . . . . . . . 6 . . . . . . . . . . . . . . 5 . . . . . 4 3 Projectile 2089 | . 53 7 35 20 14 7 . 67 23 83 3 . 61 143 43 150 18 . 63 191 7 18 10 . 10 23 18 69 4 169 . 394 45 . 29 145 167 AOE 4 | . . . . . . . . . . . . . . . . . . . . . 2 . . . . . . . . . . . . . . 2 . Critical Strikes 119 | . 2 . 5 2 6 1 . 2 1 5 . . . 6 2 4 . . 1 1 . 2 3 . . 2 2 5 . 8 . 13 2 . 1 32 11 Part Disruptions 13 | . . 1 . 1 . . . . . 1 . . 1 . . . . . . . . . 1 . . . . . . 4 . 2 . . . 2 . Damage Taken 32051 | . 597 346 379 380 316 108 . 632 246 1142 22 . 351 1180 447 1808 245 16 652 1781 224 451 165 . 185 407 398 1316 118 2401 . 5857 885 . 862 3705 4429 Core 3873 | . 109 9 48 47 25 . . 59 15 145 . . 26 87 34 117 27 . 29 157 62 99 32 . 18 62 . 101 23 146 . 725 70 . . 350 1251 Absorbed by Shields 4853 | . . . 133 69 . . . . 68 60 24 . 379 964 308 328 92 6 132 193 . 24 48 . 54 112 123 35 . 1198 . 274 . . . . 229 Reduced by Siege Mode 943 | . . . . . . . . . . . . . . 12 . 51 . . . 156 . . . . . . . 130 . 381 . 72 13 . . . 128 Redirected to Shielding 188 | . . . . . . . . . . . . . . . . . . . . . . . . . . . . . . . . . . . 83 105 . Ignored by Resistances 1057 | . . . . . . . . . . . . . . . . . . . . . . . . . . . . . . . . 1057 . . . . . Regen/Repaired (Parts) 1194 | . . . . . . . . . . . . 282 125 388 . . . . . . 72 . . 272 . 55 . . . . . . . . . . . Core Remaining (%) 70 | 100 . 52 . . . 70 . . . 60 . . . . . 62 . . . . . 56 . . . 88 . . . . 76 . 38 . 100 . . Volleys Fired 1526 | 3 66 15 46 28 31 9 1 34 29 58 2 6 31 97 33 83 9 11 51 75 24 84 37 7 23 68 8 58 10 150 . 133 38 9 16 115 28 Largest 3 | 2 2 2 3 3 1 2 2 3 3 3 1 3 3 3 3 3 3 2 3 2 2 3 3 2 2 3 3 3 3 3 . 3 3 2 3 2 2 Hottest 360 | 60 100 70 69 69 33 136 136 159 136 114 5 243 139 139 135 186 255 60 251 160 160 285 270 60 196 134 174 174 174 360 . 298 236 178 236 240 240 Shots Fired 2854 | 6 114 19 128 84 44 18 2 81 62 151 2 18 90 230 76 208 20 22 63 83 33 122 49 14 34 139 16 128 17 318 . 199 71 10 23 124 36 Gun 1430 | 6 105 11 127 84 39 5 . 21 30 124 . 18 89 227 65 135 . 22 2 12 3 40 . 14 8 89 3 . . 62 . 79 . . . 10 . Cannon 1235 | . . . . . . 13 2 54 29 20 . . . . 3 71 17 . 52 64 22 63 39 . 26 38 10 116 12 238 . 97 71 10 23 112 33 Launcher 78 | . 7 8 1 . 5 . . 6 3 7 . . . . . . . . . 7 . 3 . . . . . 8 . . . 23 . . . . . Special 111 | . 2 . . . . . . . . . 2 . 1 3 8 2 3 . 9 . 8 16 10 . . 12 3 4 5 18 . . . . . 2 3 Kinetic 1494 | 3 32 10 127 84 39 5 . 21 30 132 . 7 59 162 25 . 2 22 1 46 13 52 . 14 8 116 12 114 12 173 . 111 36 1 6 17 2 Thermal 1067 | . 43 1 . . . 13 2 54 29 12 . 11 30 65 43 206 15 . 34 13 12 51 39 . 21 11 1 2 . 127 . 41 35 9 17 99 31 Explosive 67 | . 7 8 1 . 5 . . 6 3 7 . . . . . . . . . 7 . 3 . . . . . 8 . . . 12 . . . . . Electromagnetic 117 | 3 32 . . . . . . . . . . . . . . . . . 19 17 . . . . 5 . . . . . . 35 . . . 6 . Robot Hit Streak 40 | 3 8 4 11 13 19 15 1 11 10 12 1 . 26 16 38 26 7 8 9 27 10 34 14 11 7 8 9 13 7 40 . 25 10 9 32 33 27 Robot Miss Streak 8 | 2 5 1 3 2 3 1 1 4 2 3 1 . 6 3 4 4 4 1 3 2 2 3 2 2 4 4 1 8 1 6 . 4 3 . . 4 1 Penetration Max 2 | . . . . . 2 1 . . . . . . 1 1 1 . . 1 . . . 1 . . 1 1 . . . 2 . 2 . . . 2 . Secondary Targets 28 | . . . . 2 . . . . . 6 . . 2 6 2 5 . 1 . . . . . . . . . . . . . 4 . . . . . Max Gunslinging Chain 1 | . . . . 1 . . . . . 1 . . 1 1 1 1 . 1 . . . . . . . . . . . . . 1 . . . . . Autonomous 13 | . . . . . 13 . . . . . . . . . . . . . . . . . . . . . . . . . . . . . . . . Shots Hit Robots 1810 | 3 72 8 85 58 61 17 1 43 43 104 4 5 51 185 63 113 13 17 19 70 21 66 25 10 20 63 11 60 8 179 . 139 47 1 23 73 29 Core Hits 1011 | 2 36 10 31 24 25 9 1 25 21 70 3 2 25 63 20 58 6 8 8 50 6 43 6 3 13 39 6 44 6 86 . 144 24 1 14 59 20 Critical Kills 59 | . . . 1 . . 2 . . . . . . . 5 1 1 . 6 . . . 10 . 1 . 8 1 . . 10 . 10 1 . 1 1 . Critical Parts Destroyed 66 | . . . 1 1 5 . . . 1 . . . . 11 . . . 4 . 1 2 6 . . . 4 . . . 13 . 15 . . . 2 . Critical Strikes 200 | . 3 . 2 1 13 2 . . 1 . . . 2 19 5 9 . 14 . 9 4 16 . 5 . 15 1 5 . 32 . 29 7 . 2 4 . Burn 20 | . 3 . . . . . . . . . . . 2 3 4 8 . . . . . . . . . . . . . . . . . . . . . Meltdown 8 | . . . . . . . . . . . . . . . . 1 . . . . . 1 . . . . . . . 3 . . 1 . 1 1 . Destroy 137 | . . . 2 1 10 2 . . 1 . . . . 16 1 . . 14 . 5 2 15 . 5 . 13 1 . . 21 . 26 . . . 2 . Blast 29 | . . . . . . . . . . . . . . . . . . . . 2 2 . . . . 2 . 5 . 8 . 3 6 . 1 . . Corrupt 1 | . . . . . . . . . . . . . . . . . . . . 1 . . . . . . . . . . . . . . . . . Sever 4 | . . . . . 3 . . . . . . . . . . . . . . . . . . . . . . . . . . . . . . 1 . Impale 1 | . . . . . . . . . . . . . . . . . . . . 1 . . . . . . . . . . . . . . . . . Melee Attacks 368 | . 2 2 2 9 39 2 . 14 3 44 4 5 6 32 . 30 1 . 3 45 9 60 2 . 3 2 . . . . . 19 . . . 29 1 Impact . | . . . . . . . . . . . . . . . . . . . . . . . . . . . . . . . . . . . . . . Slashing 154 | . 2 2 2 9 39 2 . 14 3 44 4 3 . . . . . . . . . . . . . . . . . . . . . . . 29 1 Piercing 195 | . . . . . . . . . . . . 2 6 32 . 30 1 . 3 45 9 60 2 . 3 2 . . . . . . . . . . . Sneak Attacks 40 | . 1 . 1 . 1 2 . . 1 . 3 2 . . . . 1 . 1 5 1 . . . 1 . . . . . . 9 . . . 10 1 Combat Hostiles 1 | . . . . . . . . . . . . . . . . . . . . . . . . . . . . . . . . 1 . . . . . Follow-up Attacks . | . . . . . . . . . . . . . . . . . . . . . . . . . . . . . . . . . . . . . . Damage Inflicted 81794 | 56 1547 227 1655 917 2092 455 21 1108 1096 2289 202 320 1323 4115 1226 2797 385 447 603 4610 609 1978 624 182 740 1911 386 3952 255 7195 . 7807 4053 43 4366 15410 4792 Guns 20342 | 50 769 64 1280 886 768 100 . 158 345 1486 . . 1312 4106 1165 1755 . 447 . 198 27 547 . 182 157 1355 83 . . 1432 . 1217 . . . 453 . Cannons 34923 | . . . . . . 228 21 677 424 357 . . . . 61 1000 330 . 536 2074 500 904 595 . 501 556 278 3086 206 5763 . 2727 2862 43 2271 6599 2324 Explosions 21713 | . 685 163 273 . 269 . . 273 270 446 . . . . . . . . . 1727 . 370 . . . . . 866 . . . 3741 1191 . 2095 7012 2332 Melee 4406 | . 84 . 90 . 1055 127 . . 57 . 202 320 . . . 35 55 . 57 611 56 157 . . 65 . . . . . . . . . . 1299 136 Ramming 410 | 6 9 . 12 31 . . . . . . . . 11 9 . 7 . . 10 . 26 . 29 . 17 . 25 . 49 . . 122 . . . 47 . Kinetic 27520 | 20 180 51 1280 886 768 100 . 158 345 1677 . . 985 2879 572 . 54 447 . 1489 367 650 . 182 157 1911 361 3045 206 4304 . 2303 1040 . 274 779 50 Thermal 38404 | . 527 13 . . . 228 21 677 424 166 . . 327 1227 654 2755 276 . 72 253 160 801 595 . 394 . . 41 . 2891 . 1033 3013 43 4092 13115 4606 Explosive 7095 | . 497 163 273 . 269 . . 273 270 446 . . . . . . . . . 1685 . 370 . . . . . 866 . . . 1920 . . . 63 . Electromagnetic 3959 | 30 250 . . . . . . . . . . . . . . . . . 464 572 . . . . 107 . . . . . . 2429 . . . 107 . Impact . | . . . . . . . . . . . . . . . . . . . . . . . . . . . . . . . . . . . . . . Slashing 3244 | . 84 . 90 . 1055 127 . . 57 . 202 194 . . . . . . . . . . . . . . . . . . . . . . . 1299 136 Piercing 1162 | . . . . . . . . . . . . 126 . . . 35 55 . 57 611 56 157 . . 65 . . . . . . . . . . . . Highest Corruption 22 | . . 14 . . . . . . . 3 1 1 3 11 13 17 . 11 11 . 1 1 3 3 3 3 3 3 3 16 16 13 9 . 6 19 22 Average Corruption 6 | . . 6 . . . . . . . 2 1 1 2 4 12 16 . 7 10 . 1 1 2 3 3 2 1 3 3 6 16 6 8 . 4 11 21 Corruption Purged 19 | . . . . . . . . . . . . . . . . . . . 11 . . . . . . 3 . . . . . 5 . . . . . Corruption Blocked . | . . . . . . . . . . . . . . . . . . . . . . . . . . . . . . . . . . . . . . Effects 556 | . . . . . . . . . . 17 . 7 34 40 19 89 . 6 36 . . 12 5 9 15 17 5 23 12 48 2 32 36 . 8 57 27 Message Errors 129 | . . . . . . . . . . 5 . 3 5 5 6 27 . . 10 . . 4 . 2 6 5 2 5 3 9 1 4 8 . 1 12 6 Matter Fused 132 | . . . . . . . . . . 4 . 2 12 7 2 17 . . 11 . . 1 1 2 5 5 2 5 2 9 . 9 12 . 3 16 5 Heat Flow Errors 61 | . . . . . . . . . . 2 . . 3 5 2 10 . 3 3 . . 2 . . . 1 . 1 1 5 . 3 7 . 2 7 4 Energy Discharges 49 | . . . . . . . . . . 4 . . 3 6 . 7 . . 3 . . . 2 . 1 1 . 3 1 1 . 3 4 . . 8 2 Parts Rejected 5 | . . . . . . . . . . . . . . . . 1 . . 1 . . . . . . . . . . 2 . 1 . . . . . Parts Fused 12 | . . . . . . . . . . 1 . . 1 2 . 3 . . 1 . . . 1 1 1 . . 1 . . . . . . . . . Data Loss (minor) 65 | . . . . . . . . . . 1 . 2 5 6 3 11 . 1 2 . . 1 . 4 2 2 . 5 . 6 1 5 1 . 1 5 1 Data Loss (major) 35 | . . . . . . . . . . . . . 1 4 1 3 . . 2 . . 1 . . . 1 1 3 2 6 . 1 1 . . 3 5 Misfires 26 | . . . . . . . . . . . . . 2 2 1 2 . 1 . . . 2 . . . 2 . . 2 5 . 1 1 . 1 2 2 Alerts 16 | . . . . . . . . . . . . . 1 2 2 4 . . 2 . . . 1 . . . . . 1 . . 1 1 . . 1 . Misdirections 2 | . . . . . . . . . . . . . . . . . . . . . . . . . . . . . . . . 1 . . . . 1 Weapon Failures 24 | . . . . . . . . . . . . . 1 1 2 4 . 1 1 . . 1 . . . . . . . 5 . 3 1 . . 3 1 Overload Shots . | . . . . . . . . . . . . . . . . . . . . . . . . . . . . . . . . . . . . . . Overflow Damage 5921 | . 20 18 . . 89 35 . 15 16 22 . 48 . . . 10 21 . 11 204 . 8 13 . 4 . . 167 . 185 . 115 333 . 318 3844 425 Projectiles 2996 | . . . . . . . . 5 16 9 . . . . . 10 6 . 11 75 . 6 13 . 4 . . 83 . 185 . 17 213 . 187 2013 143 Explosions 2324 | . 20 18 . . 22 . . 10 . 13 . . . . . . . . . 129 . 2 . . . . . 84 . . . 98 120 . 131 1395 282 Melee 601 | . . . . . 67 35 . . . . . 48 . . . . 15 . . . . . . . . . . . . . . . . . . 436 . Knockbacks 68 | . . . . . . . . . . 4 . . 1 . . . . . . 2 3 1 . . . 2 3 20 . 16 . 3 9 . . 4 . Impact 2 | . . . . . . . . . . . . . 1 . . . . . . . . . . . . . . . . . . . . . . 1 . Kinetic 62 | . . . . . . . . . . 3 . . . . . . . . . 2 3 1 . . . 2 2 19 . 15 . 3 9 . . 3 . Secondary 4 | . . . . . . . . . . 1 . . . . . . . . . . . . . . . . 1 1 . 1 . . . . . . . Self-Inflicted Damage 938 | . 9 40 . . 49 . . . . 28 . . . . . . . . . 28 . . . . . . . . . . . 64 . . . 537 183 Shots 19 | . 1 2 . . 1 . . . . 1 . . . . . . . . . 1 . . . . . . . . . . . 3 . . . 8 2 Rammed 31 | 1 1 . 4 2 . . . . . . . . 2 2 . 1 . . 1 . 1 . 1 . . . 3 . 2 . . 7 . . . 3 . Targets Rammed 35 | 2 1 . 4 2 . . . . . . . . 2 2 . 1 . . 1 . 1 . 2 . 2 . 3 . 2 . . 7 . . . 3 . Kicked . | . . . . . . . . . . . . . . . . . . . . . . . . . . . . . . . . . . . . . . Crushed 4 | 1 . . . . . . . . . . . . . . . . . . . . . . 1 . 2 . . . . . . . . . . . . Highest Temperature 431 | 20 150 30 32 14 . 10 . 156 198 218 . 176 280 231 270 431 239 235 196 314 258 252 102 . 362 183 212 264 55 328 . 369 423 . 282 429 399 Average Temperature 77 | 15 48 13 14 5 . 10 . 61 46 41 . 70 87 48 110 73 144 107 46 83 92 60 25 . 97 37 97 94 55 109 . 68 94 . 66 95 116 Received Heat Transfer 4616 | . 303 60 160 115 . 45 . 153 90 385 . . 67 418 135 312 4 6 64 199 60 75 6 . . 122 80 333 21 199 . 408 . . 45 626 125 Effects 16 | . . . . . . . . . . . . . . . . . . 2 . 3 . . . . 1 . . . . 3 . . 3 . . 1 3 Shutdowns 5 | . . . . . . . . . . . . . . . . . . . . . . . . . 1 . . . . . . . 3 . . . 1 Energy Bleed 3 | . . . . . . . . . . . . . . . . . . . . . . . . . . . . . . 3 . . . . . . . Interference 8 | . . . . . . . . . . . . . . . . . . 2 . 3 . . . . . . . . . . . . . . . 1 2 Siege Activations 38 | . . . . . . . . . . . . . . 1 . 10 . . . 4 . 1 . . . 2 . 4 1 7 . 3 3 . . . 2 Total Turns 816 | . . . . . . . . . . . . . . 13 . 126 . . . 51 . 16 . . . 66 . 57 4 267 . 48 144 . . . 24 Longest Duration 135 | . . . . . . . . . . . . . . 13 . 21 . . . 40 . 16 . . . 64 . 25 4 120 . 31 135 . . . 12 Martial Activations . | . . . . . . . . . . . . . . . . . . . . . . . . . . . . . . . . . . . . . . Shielding Activations . | . . . . . . . . . . . . . . . . . . . . . . . . . . . . . . . . . . . . . . Robots Disrupted . | . . . . . . . . . . . . . . . . . . . . . . . . . . . . . . . . . . . . . . Combat Hostiles . | . . . . . . . . . . . . . . . . . . . . . . . . . . . . . . . . . . . . . . Robots Corrupted 12 | . . . . . . . . . . . . . . . . . . . 2 1 . . . . 1 . . . . . . 8 . . . . . Combat Hostiles 12 | . . . . . . . . . . . . . . . . . . . 2 1 . . . . 1 . . . . . . 8 . . . . . Parts Fried 34 | . 2 . . . . . . . . . . . . . . . . . 4 2 . . . . 1 . . . . . . 25 . . . . . Impact Corruptions . | . . . . . . . . . . . . . . . . . . . . . . . . . . . . . . . . . . . . . . Robots Melted 10 | . . . . . . . . . . . . . . . . 1 . . . . . 1 . . . . . . . 3 . . 1 . 1 3 . Combat Hostiles 10 | . . . . . . . . . . . . . . . . 1 . . . . . 1 . . . . . . . 3 . . 1 . 1 3 . Parts Melted 66 | . 1 . . . . . . 2 1 2 . . 1 1 1 21 . . 2 . . 7 2 . 2 . . . . 9 . . 3 . 1 8 2 Heat Transferred 34167 | . 1421 37 . . . 407 37 1221 740 259 . . 666 2035 1480 4810 333 . 74 272 148 1112 786 . 517 . . 37 . 1623 . 803 2121 37 2452 7610 3129 Parts Sabotaged 3 | . . . . . . . . . . . . . . . . . . . . . . . . . . . . . . 3 . . . . . . . Parts Stolen . | . . . . . . . . . . . . . . . . . . . . . . . . . . . . . . . . . . . . . . Parts Stripped . | . . . . . . . . . . . . . . . . . . . . . . . . . . . . . . . . . . . . . . Power Chain Reactions 4 | . 2 . . . . . . . . . . . . . . . . . . 1 . . . . . . . . . . . 1 . . . . . Alert | -11 -10 -10 -9 -9 -9 -8 -8 -8 -8 -8 -7 -7 -7 -7 -7 -7 -6 -6 -6 -6 -6 -6 -5 -5 -5 -5 -4 -4 -4 -4 -4 -3 -3 -2 -2 -1 -1 ------- Run | Yrd Mat Min Mat Min Exi Min Mat Gar Mat Gar Fac Was Fac Gar Fac Gar Fac Was Fac Gar Fac Gar Fac Was Fac Gar Fac Gar Fac Arm Lab Res Tes Res DSF Acc Com Maximum Alert Level 5 | . . . . . . . . 2 1 4 2 . 1 5 3 5 3 1 . 4 3 5 3 1 2 4 2 5 3 2 . 2 1 1 2 5 4 Low Security (%) 39 | 100 100 100 100 100 . 100 100 26 91 3 . 100 86 . . . . . 100 12 . . . 44 76 . . . . 26 . 35 . 95 75 22 . Level 1 10 | . . . . . . . . 18 8 14 . . 13 5 . 3 . 100 . 2 . 6 . 55 19 4 . 8 . 11 . 33 100 4 7 11 . Level 2 17 | . . . . . . . . 54 . 29 100 . . 19 83 12 . . . 22 42 22 . . 4 39 100 4 . 61 . 30 . . 17 13 . Level 3 15 | . . . . . . . . . . 28 . . . 29 16 21 100 . . 33 57 16 100 . . 22 . 49 100 . . . . . . 7 . Level 4 13 | . . . . . . . . . . 24 . . . 29 . 36 . . . 28 . 36 . . . 33 . 36 . . . . . . . 30 100 Level 5 3 | . . . . . . . . . . . . . . 14 . 26 . . . . . 18 . . . . . 1 . . . . . . . 13 . High Security . | . . . . . . . . . . . . . . . . . . . . . . . . . . . . . . . . . . . . . . Max Security . | . . . . . . . . . . . . . . . . . . . . . . . . . . . . . . . . . . . . . . Sterilizations 1 | . . . . . . . . . . . . . . . . . . . . . . . . . . . . . . . . . . . 1 . . Peak Influence 1951 | 10 156 99 138 136 . 66 5 642 312 1294 679 173 331 1951 1024 1811 955 329 171 1467 789 1894 1047 349 407 1236 662 1698 1026 694 . 606 383 201 438 1777 1536 Initial 1151 | . 3 46 23 . . . . . 312 78 679 173 . 225 1024 324 950 329 167 56 770 349 994 349 66 272 648 336 891 416 . . 271 201 6 262 1151 Average 532 | 1 62 4 35 40 . 10 . 408 81 764 580 30 106 1050 578 1228 907 286 48 824 661 1129 970 219 158 832 556 1083 910 377 . 288 284 95 179 855 1427 Influence Increases 23496 | 15 535 169 456 360 . 111 5 652 329 1266 30 1 1183 1826 216 1547 170 . 294 1481 323 1675 401 . 697 1024 166 1402 406 1346 . 1441 548 30 442 2268 681 Destroy 0b10 Robot/C 11420 | . 320 100 260 260 . 80 . 400 160 700 . . 460 660 180 900 100 . 160 700 140 640 200 . 360 600 100 740 140 840 . 820 260 . 260 620 260 Destroy 0b10 Robot/NC 695 | 15 40 . 35 10 . 10 5 . 35 . 15 . 50 25 5 . 10 . 5 10 20 35 10 . 20 . . . 25 15 . 85 45 5 10 135 20 Destroy Leader 1580 | . 68 20 100 40 . 20 . 20 54 30 . . 126 20 30 60 20 . 50 40 40 40 12 . 40 50 20 60 50 124 . 154 66 . 40 146 40 Allied During Kill 1979 | . . . . 19 . . . . . 17 . . 403 100 . 6 5 . 2 45 57 305 95 . 230 110 27 242 139 38 . 86 5 . . 20 28 Successful Hack 389 | . 46 . 32 . . . . 14 23 . . . 69 33 . 7 . . 6 36 5 . 28 . . 14 . 14 8 16 . . 24 7 . 7 . Disable Machine 840 | . . 15 15 . . . . 15 30 45 15 . 60 . . 45 . . . 15 45 15 30 . 15 30 15 30 30 150 . 45 30 . . 120 30 Anti-Garrison Action 3100 | . . . . . . . . 100 . 350 . . . 900 . 400 . . . 500 . 550 . . . 150 . 150 . . . . . . . . . Destroy Structure 3103 | . 46 34 14 1 . 1 . 43 27 109 . 1 15 88 1 114 5 . 26 135 16 90 26 . 32 55 4 166 14 148 . 176 118 18 132 1175 273 Partial Spotted 45 | . . . . . . . . . . . . . . . . . . . 15 . . . . . . . . . . . . 30 . . . . . Lose Combat Pursuer 345 | . 15 . . 30 . . . 60 . 15 . . . . . 15 30 . 30 . . . . . . 15 . . . 15 . 45 . . . 45 30 Influence Decreases 22128 | 10 421 228 516 350 10 111 5 10 851 92 829 496 861 197 1703 200 1041 701 453 94 1291 280 1296 904 403 177 922 184 1253 1518 679 958 672 380 13 907 1112 Entered New Map 10556 | . 2 73 37 . 10 . . . 330 42 615 322 . 97 927 140 861 611 72 24 697 150 900 650 29 117 588 144 807 435 679 . 212 158 3 176 648 Time Decay 7537 | 10 399 133 369 300 . 111 5 . 218 . 214 174 487 . 206 . 140 90 240 . 404 . 356 254 334 . 294 . 326 538 . 418 440 222 . 601 254 Lost Part 768 | . 20 22 . 10 . . . 10 6 20 . . . . 20 60 . . 10 50 . 10 . . . . . . . 30 . 210 . . 10 130 150 Lost Ally 1204 | . . . . 40 . . . . . 30 . . 74 100 . . 40 . . 20 40 120 40 . 40 60 40 40 120 140 . 180 20 . . . 60 Purge Threat 2063 | . . . 110 . . . . . 297 . . . 300 . 550 . . . 131 . 150 . . . . . . . . 375 . 150 . . . . . Squads Dispatched 78 | . 2 . 1 . . . . . . . 1 . 5 . 3 . 3 . 5 . 2 . 3 . 1 . 3 . 4 10 . 12 7 1 1 11 3 Investigation 6 | . 1 . . . . . . . . . . . . . . . . . . . . . . . . . . . 3 . . . . . . 2 . Extermination 26 | . . . . . . . . . . . 1 . 4 . 1 . . . 2 . 2 . 1 . 1 . . . . 3 . 3 2 1 . 4 1 Reinforcement 28 | . 1 . 1 . . . . . . . . . 1 . 2 . . . 3 . . . 1 . . . 2 . . 4 . 4 5 . 1 3 . Assault 12 | . . . . . . . . . . . . . . . . . . . . . . . 1 . . . 1 . 1 3 . 2 . . . 2 2 Garrison 6 | . . . . . . . . . . . . . . . . . 3 . . . . . . . . . . . . . . 3 . . . . . Intercept . | . . . . . . . . . . . . . . . . . . . . . . . . . . . . . . . . . . . . . . Searches Triggered . | . . . . . . . . . . . . . . . . . . . . . . . . . . . . . . . . . . . . . . Unchained Authorized 4 | . . . . . . . . . . . . . . . . . . . . . . . . . . . . . . 1 . . 1 1 . 1 . Construction Impeded 4 | . . . . . . . . . . . . . . . . . . . . . . . . . . . . . . . . . 2 . . 2 . Haulers Reinforced 5 | . . . . . . . . . . . . . . . . . . . . . . . 1 . . . 1 . . . . 1 1 . . 1 . Active Scanning Responses . | . . . . . . . . . . . . . . . . . . . . . . . . . . . . . . . . . . . . . . Cargo Convoy Interrupts 1 | . . . . . . . . . . . . . . . . . . . . . . . . . . . . . . . . 1 . . . . . Stealth | -11 -10 -10 -9 -9 -9 -8 -8 -8 -8 -8 -7 -7 -7 -7 -7 -7 -6 -6 -6 -6 -6 -6 -5 -5 -5 -5 -4 -4 -4 -4 -4 -3 -3 -2 -2 -1 -1 --------- Run | Yrd Mat Min Mat Min Exi Min Mat Gar Mat Gar Fac Was Fac Gar Fac Gar Fac Was Fac Gar Fac Gar Fac Was Fac Gar Fac Gar Fac Arm Lab Res Tes Res DSF Acc Com Distress Signals 14 | . 2 . . . . . 1 . . . . . 3 . 1 . . . . . . . . . . . . . . 1 . 1 1 . . 4 . Communications Jammed 326 | . . . . . . . . . . . . . . . . . . . 2 . 92 . 2 . 2 . . . . . . 228 . . . . . Distress Signals 324 | . . . . . . . . . . . . . . . . . . . 2 . 92 . 2 . 1 . . . . . . 227 . . . . . Times Spotted 739 | . 27 6 23 15 26 4 2 18 16 35 1 . 20 30 12 45 7 5 14 27 11 36 14 . 17 21 14 25 7 57 . 85 21 . 10 65 23 Peak Tracking Total 15 | . 4 3 5 3 10 3 2 10 4 6 1 . 4 6 3 8 4 4 5 7 4 4 4 . 5 6 6 4 2 10 . 15 3 . 4 5 8 Tactical Retreats 30 | . 1 . . 1 12 . . 3 . 1 . . . . . 1 1 . 2 . . . . . . 1 . . . 1 . 2 . . . 2 2 Traps | -11 -10 -10 -9 -9 -9 -8 -8 -8 -8 -8 -7 -7 -7 -7 -7 -7 -6 -6 -6 -6 -6 -6 -5 -5 -5 -5 -4 -4 -4 -4 -4 -3 -3 -2 -2 -1 -1 ------- Run | Yrd Mat Min Mat Min Exi Min Mat Gar Mat Gar Fac Was Fac Gar Fac Gar Fac Was Fac Gar Fac Gar Fac Was Fac Gar Fac Gar Fac Arm Lab Res Tes Res DSF Acc Com Traps Triggered 36 | . 1 . . . . . . . . . 1 . 5 . 3 3 3 . . 4 1 . 1 . 2 . 4 2 . 2 . 1 . 1 1 1 . Indirectly 1 | . . . . . . . . . . . . . . . . . . . . . . . . . . . . . . . . 1 . . . . . Trap Hack Attempts . | . . . . . . . . . . . . . . . . . . . . . . . . . . . . . . . . . . . . . . Triggered . | . . . . . . . . . . . . . . . . . . . . . . . . . . . . . . . . . . . . . . Disarmed . | . . . . . . . . . . . . . . . . . . . . . . . . . . . . . . . . . . . . . . Reprogrammed . | . . . . . . . . . . . . . . . . . . . . . . . . . . . . . . . . . . . . . . Reused 2 | . . 2 . . . . . . . . . . . . . . . . . . . . . . . . . . . . . . . . . . . Traps Extracted . | . . . . . . . . . . . . . . . . . . . . . . . . . . . . . . . . . . . . . . Installed 4 | . . 4 . . . . . . . . . . . . . . . . . . . . . . . . . . . . . . . . . . . Triggered . | . . . . . . . . . . . . . . . . . . . . . . . . . . . . . . . . . . . . . . Most Traps Carried 4 | . . 4 . . . . . . . . . . . . . . . . . . . . . . . . . . . . . . . . . . . Machines | -11 -10 -10 -9 -9 -9 -8 -8 -8 -8 -8 -7 -7 -7 -7 -7 -7 -6 -6 -6 -6 -6 -6 -5 -5 -5 -5 -4 -4 -4 -4 -4 -3 -3 -2 -2 -1 -1 ---------- Run | Yrd Mat Min Mat Min Exi Min Mat Gar Mat Gar Fac Was Fac Gar Fac Gar Fac Was Fac Gar Fac Gar Fac Was Fac Gar Fac Gar Fac Arm Lab Res Tes Res DSF Acc Com Machines Disabled 103 | . . 1 1 . 9 . . 3 2 10 1 . 4 4 . 7 . . . 7 3 9 2 . 1 5 1 3 2 10 . 3 5 . . 8 2 Max in Single Turn 2 | . . 1 1 . 2 . . 1 1 2 1 . 1 1 . 1 . . . 1 1 1 1 . 1 1 1 1 . 1 . 1 1 . . 2 1 Garrison Access 9 | . . . . . . . . . . . . . . . . . . . . . . . 3 . . . 1 . 1 . . 2 . . . 2 . Garrison Relay 30 | . . . . . . . . 2 . 6 . . . 4 . 4 . . . 4 . 6 . . . 3 . 1 . . . . . . . . . Machines Repaired . | . . . . . . . . . . . . . . . . . . . . . . . . . . . . . . . . . . . . . . Machines Dismantled . | . . . . . . . . . . . . . . . . . . . . . . . . . . . . . . . . . . . . . . Machines Sabotaged . | . . . . . . . . . . . . . . . . . . . . . . . . . . . . . . . . . . . . . . Overloaded Fab Kills . | . . . . . . . . . . . . . . . . . . . . . . . . . . . . . . . . . . . . . . Hacking | -11 -10 -10 -9 -9 -9 -8 -8 -8 -8 -8 -7 -7 -7 -7 -7 -7 -6 -6 -6 -6 -6 -6 -5 -5 -5 -5 -4 -4 -4 -4 -4 -3 -3 -2 -2 -1 -1 --------- Run | Yrd Mat Min Mat Min Exi Min Mat Gar Mat Gar Fac Was Fac Gar Fac Gar Fac Was Fac Gar Fac Gar Fac Was Fac Gar Fac Gar Fac Arm Lab Res Tes Res DSF Acc Com Machines Accessed 120 | . 7 . 11 1 2 . 1 3 8 2 . . 11 3 3 3 . . 8 3 7 3 4 . 2 2 5 3 6 4 . 6 1 2 . 9 . Terminals 79 | . 5 . 9 . . . . 3 6 2 . . 7 3 1 3 . . 4 3 4 3 1 . 1 2 3 3 3 2 . 3 . 1 . 7 . Fabricators 8 | . . . . . . . . . . . . . 2 . 1 . . . 1 . 2 . . . . . . . . 2 . . . . . . . Repair Stations 2 | . 1 . . . . . . . . . . . . . . . . . . . . . . . . . . . . . . 1 . . . . . Recycling Units 1 | . 1 . . . . . . . . . . . . . . . . . . . . . . . . . . . . . . . . . . . . Scanalyzers 11 | . . . 2 . . . . . 1 . . . 1 . . . . . 2 . . . . . . . . . 2 . . 1 1 1 . . . Garrison Access 16 | . . . . . . . 1 . 1 . . . 1 . 1 . . . 1 . 1 . 3 . 1 . 2 . 1 . . 1 . . . 2 . Total Hacks 274 | . 28 . 31 1 5 . 1 4 36 3 . . 22 5 3 7 . . 17 7 13 5 7 . 5 4 10 5 14 7 . 7 2 8 . 17 . Successful 139 | . 18 . 15 1 5 . 1 2 24 . . . 15 3 1 2 . . 8 3 4 . 7 . 2 1 4 2 6 1 . 2 1 7 . 4 . Failed 134 | . 10 . 15 . . . . 2 12 3 . . 7 2 2 5 . . 9 4 9 5 . . 3 3 6 3 8 6 . 5 1 1 . 13 . Catastrophic 40 | . 3 . 1 . . . . 2 . 1 . . 2 1 1 . . . 3 1 5 2 . . . . 3 3 2 1 . 2 1 . . 6 . Database Lockouts 1 | . . . 1 . . . . . . . . . . . . . . . . . . . . . . . . . . . . . . . . . . Manual 106 | . 15 . 21 . 1 . . 2 17 3 . . 5 2 . . . . 8 2 7 . 1 . 3 . 6 2 5 3 . 3 . . . . . Terminals 197 | . 25 . 28 . . . . 4 32 3 . . 16 5 1 7 . . 9 7 5 5 3 . 3 4 7 5 5 4 . 4 . 1 . 14 . Fabricators 17 | . . . . . . . . . . . . . 3 . 1 . . . 3 . 7 . . . . . . . . 3 . . . . . . . Repair Stations 3 | . 2 . . . . . . . . . . . . . . . . . . . . . . . . . . . . . . 1 . . . . . Recycling Units 1 | . 1 . . . . . . . . . . . . . . . . . . . . . . . . . . . . . . . . . . . . Scanalyzers 29 | . . . 3 . . . . . 3 . . . 2 . . . . . 4 . . . . . . . . . 7 . . 1 2 7 . . . Garrison Access 21 | . . . . . . . 1 . 1 . . . 1 . 1 . . . 1 . 1 . 4 . 2 . 3 . 2 . . 1 . . . 3 . Terminal Hacks 64 | . 8 . 6 1 5 . . 2 14 . . . 9 2 . 2 . . 2 2 1 . 2 . . 1 1 2 1 . . 1 . 1 . 1 . Record 5 | . . . . . 4 . . . . . . . 1 . . . . . . . . . . . . . . . . . . . . . . . . Part Schematic 2 | . 2 . . . . . . . . . . . . . . . . . . . . . . . . . . . . . . . . . . . . Robot Analysis 2 | . . . . . . . . . 2 . . . . . . . . . . . . . . . . . . . . . . . . . . . . Prototype ID Bank 12 | . 3 . 4 . . . . . 1 . . . 2 . . . . . 1 . . . 1 . . . . . . . . . . . . . . Open Door 5 | . . . . 1 . . . . . . . . . 1 . 1 . . . 1 . . . . . . . . . . . . . . . 1 . Open DSF 3 | . . . . . . . . . . . . . 1 . . . . . . . . . . . . . 1 . . . . . . 1 . . . Branch Access Points 3 | . . . . . . . . . 1 . . . 1 . . . . . . . . . . . . . . . 1 . . . . . . . . Emergency Access Points 7 | . 1 . . . . . . 1 . . . . 2 1 . 1 . . . . . . . . . . . 1 . . . . . . . . . Terminal Index 1 | . . . . . . . . . 1 . . . . . . . . . . . . . . . . . . . . . . . . . . . . Garrison Index 1 | . . . . . . . . . 1 . . . . . . . . . . . . . . . . . . . . . . . . . . . . Unreport Threat 8 | . . . 1 . . . . . 2 . . . 2 . . . . . 1 . 1 . . . . . . . . . . 1 . . . . . Locate Traps 4 | . 1 . . . . . . . 3 . . . . . . . . . . . . . . . . . . . . . . . . . . . . Hauler Manifests 2 | . 1 . . . . . . . 1 . . . . . . . . . . . . . . . . . . . . . . . . . . . . Registered Components 1 | . . . . . . . . . 1 . . . . . . . . . . . . . . . . . . . . . . . . . . . . Registered Prototypes 1 | . . . 1 . . . . . . . . . . . . . . . . . . . . . . . . . . . . . . . . . . Zone Layout 2 | . . . . . . . . . 1 . . . . . . . . . . . . . 1 . . . . . . . . . . . . . . Garrison Registry 3 | . . . . . . . . 1 . . . . . . . . . . . . . . . . . 1 . 1 . . . . . . . . . Security Stations 1 | . . . . . . . . . . . . . . . . . . . . 1 . . . . . . . . . . . . . . . . . Proto ID Catalog 1 | . . . . . 1 . . . . . . . . . . . . . . . . . . . . . . . . . . . . . . . . Fabricator Hacks 6 | . . . . . . . . . . . . . 2 . . . . . 1 . 2 . . . . . . . . 1 . . . . . . . Network Status 4 | . . . . . . . . . . . . . 2 . . . . . 1 . 1 . . . . . . . . . . . . . . . . Build 2 | . . . . . . . . . . . . . . . . . . . . . 1 . . . . . . . . 1 . . . . . . . Repair Station Hacks 1 | . 1 . . . . . . . . . . . . . . . . . . . . . . . . . . . . . . . . . . . . Scan Component 1 | . 1 . . . . . . . . . . . . . . . . . . . . . . . . . . . . . . . . . . . . Recycling Unit Hacks . | . . . . . . . . . . . . . . . . . . . . . . . . . . . . . . . . . . . . . . Scanalyzer 19 | . . . 2 . . . . . 2 . . . 2 . . . . . 3 . . . . . . . . . 3 . . . 1 6 . . . Insert Component 6 | . . . . . . . . . 1 . . . 1 . . . . . 1 . . . . . . . . . 2 . . . . 1 . . . Analyze 4 | . . . . . . . . . . . . . . . . . . . 1 . . . . . . . . . 1 . . . . 2 . . . Retrieve Study 9 | . . . 2 . . . . . 1 . . . 1 . . . . . 1 . . . . . . . . . . . . . 1 3 . . . Garrison Access Hacks 21 | . . . . . . . 1 . 1 . . . 1 . 1 . . . 1 . 1 . 4 . 2 . 3 . 2 . . 1 . . . 3 . Unlock Access 8 | . . . . . . . 1 . 1 . . . 1 . 1 . . . 1 . 1 . . . 1 . 1 . . . . . . . . . . Seal Access 8 | . . . . . . . . . . . . . . . . . . . . . . . 3 . . . 1 . 1 . . 1 . . . 2 . Coupler Status 5 | . . . . . . . . . . . . . . . . . . . . . . . 1 . 1 . 1 . 1 . . . . . . 1 . Unauthorized Hacks 28 | . 9 . 7 . . . . . 7 . . . 1 1 . . . . 1 1 . . 1 . . . . . . . . . . . . . . Terminals 27 | . 9 . 7 . . . . . 7 . . . . 1 . . . . 1 1 . . 1 . . . . . . . . . . . . . . Assimilate 2 | . 1 . . . . . . . 1 . . . . . . . . . . . . . . . . . . . . . . . . . . . . Botnet 9 | . 2 . 2 . . . . . 1 . . . . 1 . . . . 1 1 . . 1 . . . . . . . . . . . . . . Operators 1 | . 1 . . . . . . . . . . . . . . . . . . . . . . . . . . . . . . . . . . . . Skim 15 | . 5 . 5 . . . . . 5 . . . . . . . . . . . . . . . . . . . . . . . . . . . . Fabricators 1 | . . . . . . . . . . . . . 1 . . . . . . . . . . . . . . . . . . . . . . . . Haulers 1 | . . . . . . . . . . . . . 1 . . . . . . . . . . . . . . . . . . . . . . . . Repair Stations . | . . . . . . . . . . . . . . . . . . . . . . . . . . . . . . . . . . . . . . Recycling Units . | . . . . . . . . . . . . . . . . . . . . . . . . . . . . . . . . . . . . . . Scanalyzers . | . . . . . . . . . . . . . . . . . . . . . . . . . . . . . . . . . . . . . . Garrison Access . | . . . . . . . . . . . . . . . . . . . . . . . . . . . . . . . . . . . . . . Data Cores Recovered 3 | . . . 1 . . . . . . . . . 1 . . . . . . . . . . . . . . . 1 . . . . . . . . Used 2 | . . . 1 . . . . . . . . . 1 . . . . . . . . . . . . . . . . . . . . . . . . Hacking Detections 97 | . 7 . 11 . . . . 2 8 2 . . 7 2 2 2 . . 8 2 7 3 2 . 2 1 4 3 5 3 . 5 1 1 . 7 . Full Trace Events 6 | . . . . . . . . . . . . . . . . . . . . . . 1 . . . . . . 3 . . . . . . 2 . Feedback Events 2 | . . . . . . . . . . . . . . . . . . . . . . . . . . . . . . . . . . . . 2 . Corruption 2 | . . . . . . . . . . . . . . . . . . . . . . . . . . . . . . . . . . . . 2 . Feedback Blocked . | . . . . . . . . . . . . . . . . . . . . . . . . . . . . . . . . . . . . . . Robot Schematics Acquired . | . . . . . . . . . . . . . . . . . . . . . . . . . . . . . . . . . . . . . . Robots Built . | . . . . . . . . . . . . . . . . . . . . . . . . . . . . . . . . . . . . . . Authchips . | . . . . . . . . . . . . . . . . . . . . . . . . . . . . . . . . . . . . . . Time . | . . . . . . . . . . . . . . . . . . . . . . . . . . . . . . . . . . . . . . Total Robot Build Rating . | . . . . . . . . . . . . . . . . . . . . . . . . . . . . . . . . . . . . . . Part Schematics Acquired 4 | . 2 . . . . . . . . . . . . . . . . . 1 . . . . . . . . . . . . . . 1 . . . Parts Built 3 | . . . . . . . . . . . . . . . . . . . . . 2 . . . . . . . . 1 . . . . . . . Authchips . | . . . . . . . . . . . . . . . . . . . . . . . . . . . . . . . . . . . . . . Time 186 | . . . . . . . . . . . . . . . . . . . . . 117 . . . . . . . . 69 . . . . . . . Total Part Build Rating 23 | . . . . . . . . . . . . . . . . . . . . . 14 . . . . . . . . 9 . . . . . . . Part Studies Acquired 9 | . . . 2 . . . . . 1 . . . 1 . . . . . 1 . . . . . . . . . . . . . 1 3 . . . Parts Repaired . | . . . . . . . . . . . . . . . . . . . . . . . . . . . . . . . . . . . . . . Time . | . . . . . . . . . . . . . . . . . . . . . . . . . . . . . . . . . . . . . . Parts Recycled . | . . . . . . . . . . . . . . . . . . . . . . . . . . . . . . . . . . . . . . Recycled Matter . | . . . . . . . . . . . . . . . . . . . . . . . . . . . . . . . . . . . . . . Retrieved Matter . | . . . . . . . . . . . . . . . . . . . . . . . . . . . . . . . . . . . . . . Retrieved Components . | . . . . . . . . . . . . . . . . . . . . . . . . . . . . . . . . . . . . . . Parts Scanalyzed 3 | . . . . . . . . . . . . . . . . . . . 1 . . . . . . . . . 1 . . . . 1 . . . Part Schematics Acquired 2 | . . . . . . . . . . . . . . . . . . . 1 . . . . . . . . . . . . . . 1 . . . Parts Damaged 1 | . . . . . . . . . . . . . . . . . . . . . . . . . . . . . . . . . . 1 . . . Bothacking | -11 -10 -10 -9 -9 -9 -8 -8 -8 -8 -8 -7 -7 -7 -7 -7 -7 -6 -6 -6 -6 -6 -6 -5 -5 -5 -5 -4 -4 -4 -4 -4 -3 -3 -2 -2 -1 -1 ------------ Run | Yrd Mat Min Mat Min Exi Min Mat Gar Mat Gar Fac Was Fac Gar Fac Gar Fac Was Fac Gar Fac Gar Fac Was Fac Gar Fac Gar Fac Arm Lab Res Tes Res DSF Acc Com Used RIF Installer 11 | . . . . . . . . 1 . 1 . . . 2 . 2 . . . 1 . 1 . . . 2 . 1 . . . . . . . . . Coupler Efficiency 1 | . . . . . . . . . . . . . . . . . . . . 1 . . . . . . . . . . . . . . . . . Hotswap 1 | . . . . . . . . . . . . . . . . . . . . . . . . . . 1 . . . . . . . . . . . Code Merge 1 | . . . . . . . . . . . . . . . . 1 . . . . . . . . . . . . . . . . . . . . . Signal Jammer 1 | . . . . . . . . . . . . . . 1 . . . . . . . . . . . . . . . . . . . . . . . Zone Cloak 1 | . . . . . . . . . . . . . . . . . . . . . . . . . . 1 . . . . . . . . . . . Robot Detection 1 | . . . . . . . . . . . . . . 1 . . . . . . . . . . . . . . . . . . . . . . . Watcher Feeds 1 | . . . . . . . . . . 1 . . . . . . . . . . . . . . . . . . . . . . . . . . . Patrol Navigation 1 | . . . . . . . . . . . . . . . . 1 . . . . . . . . . . . . . . . . . . . . . Autooverride 1 | . . . . . . . . . . . . . . . . . . . . . . 1 . . . . . . . . . . . . . . . Crosswire 1 | . . . . . . . . . . . . . . . . . . . . . . . . . . . . 1 . . . . . . . . . Robots Hacked 96 | . . . . . . . . . . . 1 . . 2 3 1 2 . 4 . 5 8 10 . 2 5 2 7 3 13 . 18 2 . . 3 5 Non-combat 22 | . . . . . . . . . . . 1 . . . 3 . 2 . 2 . 3 . 3 . . . 2 . . 1 . 5 . . . . . Combat 74 | . . . . . . . . . . . . . . 2 . 1 . . 2 . 2 8 7 . 2 5 . 7 3 12 . 13 2 . . 3 5 Autooverrided 28 | . . . . . . . . . . . . . . . . . . . . . . . 3 . 3 3 . 4 . 4 . 5 2 . . 1 3 Robot Hacks Applied 82 | . . . . . . . . . . . 1 . . 2 8 1 2 . 5 . 5 8 7 . . 2 2 3 3 15 . 14 . . . 2 2 parse_system 7 | . . . . . . . . . . . . . . . . . . . 2 . 1 . . . . . . . . 1 . 3 . . . . . find_chute 3 | . . . . . . . . . . . 1 . . . . . 1 . . . . . 1 . . . . . . . . . . . . . . ignore_repairs 1 | . . . . . . . . . . . . . . . 1 . . . . . . . . . . . . . . . . . . . . . . drop_inventory 9 | . . . . . . . . . . . . . . . . . 1 . 1 . 1 . 2 . . . 2 . . . . 2 . . . . . ignore_parts 1 | . . . . . . . . . . . . . . . 1 . . . . . . . . . . . . . . . . . . . . . . purge_threat 9 | . . . . . . . . . . . . . . . 6 . . . . . . . . . . . . . . 3 . . . . . . . find_terminals 1 | . . . . . . . . . . . . . . . . . . . . . . . . . . . . . . 1 . . . . . . . locate_traps 1 | . . . . . . . . . . . . . . . . . . . . . . . . . . . . . . 1 . . . . . . . map_route 1 | . . . . . . . . . . . . . . . . . . . . . . . . . . . . . . . . 1 . . . . . disrupt_area 1 | . . . . . . . . . . . . . . . . . . . . . . . . . . . . . . . . . . . . 1 . amplify_resonance 8 | . . . . . . . . . . . . . . . . 1 . . . . 1 1 1 . . 1 . 1 . 2 . . . . . . . disable_weapons 2 | . . . . . . . . . . . . . . 1 . . . . . . . . . . . . . . . . . 1 . . . . . overwrite_iff 6 | . . . . . . . . . . . . . . . . . . . . . . . . . . . . . . 5 . 1 . . . . . formatsys_low 1 | . . . . . . . . . . . . . . . . . . . . . 1 . . . . . . . . . . . . . . . . formatsys_high 31 | . . . . . . . . . . . . . . 1 . . . . 2 . 1 7 3 . . 1 . 2 3 2 . 6 . . . 1 2 Relay Couplers Released 164 | . . . . . . . . 9 . 33 . . . 18 . 18 . . . 19 . 30 3 . . 11 3 5 4 . . 8 . . . 3 . Machine Destruction 145 | . . . . . . . . 9 . 29 . . . 18 . 18 . . . 19 . 26 3 . . 11 3 5 . . . 1 . . . 3 . Programmers 19 | . . . . . . . . . . 4 . . . . . . . . . . . 4 . . . . . . 4 . . 7 . . . . . Attached 27 | . . . . . . . . . . . . . . 1 4 1 2 . 2 2 1 3 1 . 1 . 1 2 . . . 5 . . . 1 . Crosswired 10 | . . . . . . . . . . . . . . . . . . . . . . . . . . . . 7 . . . 3 . . . . . Merged Code Value 346 | . . . . . . . . . . . . . . . . . . . . 30 . 95 7 . . 88 7 93 . 7 . 13 . . . 6 . Fabnet Peak Effective % . | . . . . . . . . . . . . . . . . . . . . . . . . . . . . . . . . . . . . . . Robots Rewired 19 | . . . . . . . . . . 3 . . . . . . . . . 7 . 3 . . . 3 . 3 . . . . . . . . . Allies Hacked 4 | . . . . . . . . . . 1 . . 2 . . . . . . . . . . . . . . . . . . 1 . . . . . Hacks Repelled . | . . . . . . . . . . . . . . . . . . . . . . . . . . . . . . . . . . . . . . Allies | -11 -10 -10 -9 -9 -9 -8 -8 -8 -8 -8 -7 -7 -7 -7 -7 -7 -6 -6 -6 -6 -6 -6 -5 -5 -5 -5 -4 -4 -4 -4 -4 -3 -3 -2 -2 -1 -1 -------- Run | Yrd Mat Min Mat Min Exi Min Mat Gar Mat Gar Fac Was Fac Gar Fac Gar Fac Was Fac Gar Fac Gar Fac Was Fac Gar Fac Gar Fac Arm Lab Res Tes Res DSF Acc Com Total Allies 113 | . . . . 2 . . . . 1 3 . 20 . 3 . 2 . 1 2 7 2 10 6 2 2 7 . 9 3 10 . 12 2 . . 2 5 Largest Group 20 | . . . . 2 . . . . 1 4 . 20 19 6 . 2 2 1 2 4 4 9 8 8 8 5 5 6 7 2 . 3 1 . . 1 4 Highest-Rated Group 519 | . . . . 45 . . . . 10 58 . 519 484 176 . 64 64 31 63 228 223 348 267 267 268 211 211 347 392 111 . 176 47 . . 69 216 Highest-Rated Ally 85 | . . . . 31 . . . . 10 16 . 35 31 39 . 39 39 31 32 85 85 51 49 49 49 49 49 68 68 64 . 64 47 . . 69 58 Total Orders 28 | . . . . . 2 . . . . . . . . 1 . . . . . 4 1 6 . 1 . 6 1 . 3 3 . . . . . . . STAY 10 | . . . . . . . . . . . . . . 1 . . . . . 2 . 3 . . . 2 . . 2 . . . . . . . . ROAM 3 | . . . . . . . . . . . . . . . . . . . . . . . . . . . . . 1 2 . . . . . . . FOLLOW 8 | . . . . . . . . . . . . . . . . . . . . 2 . 3 . . . 2 . . . 1 . . . . . . . AID 5 | . . . . . . . . . . . . . . . . . . . . . 1 . . 1 . 2 1 . . . . . . . . . . RETURN 2 | . . . . . 2 . . . . . . . . . . . . . . . . . . . . . . . . . . . . . . . . Ally Attacks 736 | . . . . 3 28 . . . . 19 . . 118 64 . 5 7 14 4 7 31 72 56 . 68 33 15 21 38 37 . 57 6 . . 15 18 Total Damage 17302 | . . . . 21 137 . . . . 297 . . 1485 1062 . 128 40 256 130 162 411 1805 942 . 1295 860 374 1129 1854 1175 . 2238 230 . . 612 659 Kills 114 | . . . . . . . . . . 1 . . 17 8 . 1 1 . . 1 5 12 6 . 11 9 2 8 7 6 . 12 2 . . 3 2 Allies Corrupted 5 | . . . . . . . . . . . . . 1 . . . . . . . . . . . . . 2 . 1 1 . . . . . . . Allies Melted 2 | . . . . . . . . . . . . . . 1 . . . . . . . . . . . . . . 1 . . . . . . . . Intel | -11 -10 -10 -9 -9 -9 -8 -8 -8 -8 -8 -7 -7 -7 -7 -7 -7 -6 -6 -6 -6 -6 -6 -5 -5 -5 -5 -4 -4 -4 -4 -4 -3 -3 -2 -2 -1 -1 ------- Run | Yrd Mat Min Mat Min Exi Min Mat Gar Mat Gar Fac Was Fac Gar Fac Gar Fac Was Fac Gar Fac Gar Fac Was Fac Gar Fac Gar Fac Arm Lab Res Tes Res DSF Acc Com Active Infowar (turns) 21961 | 36 1359 2893 323 743 727 . 55 . . . 414 780 957 . 35 . 1 . . . . 32 780 545 892 1121 640 1216 736 1654 53 1665 1087 462 294 1924 537 Optics 13638 | . . . . . . . . . . . . . . . . . . . . . . 32 780 545 892 1121 640 1216 736 1654 53 1665 1087 462 294 1924 537 Sensors 1 | . . . . . . . . . . . . . . . . . . . . . . . . . . . . . . 1 . . . . . . . IFF 2148 | . . . . . . . . . . . . . . . . . . . . . . . . . . . . . . . . . . 292 85 1771 . Terrain 371 | 28 99 . . . . . . . . . . . . . . . . . . . . . . . . . . . . . . . . . . 244 . Traps 1 | . . . . . . . . . . . . . . . . . 1 . . . . . . . . . . . . . . . . . . . . Seismic 8309 | 36 1359 2893 310 743 727 . 55 . . . 414 780 957 . 35 . . . . . . . . . . . . . . . . . . . . . . T.N.C. 13 | . . . 13 . . . . . . . . . . . . . . . . . . . . . . . . . . . . . . . . . . Triangulation 2 | . . . . . . . . . . . . . . . . . . . . . . . . . 2 . . . . . . . . . . . . Cloaking 3457 | . . . . . . . . . . . . . . . . . . . . . . . . . . . . . . 181 . 647 202 462 294 1671 . ECM 224 | . . . . . . . . . . . . . . . . . . . . . . . . . . . . . . . . . . . . 224 . Robot Analysis Total 2 | . . . . . . . . . 2 . . . . . . . . . . . . . . . . . . . . . . . . . . . . Derelict Logs Recovered 3 | . . 1 . 2 . . . . . . . . . . . . . . . . . . . . . . . . . . . . . . . . . Drone Launches 10 | . . . . . 10 . . . . . . . . . . . . . . . . . . . . . . . . . . . . . . . . Drone Recoveries 8 | . . . . . 8 . . . . . . . . . . . . . . . . . . . . . . . . . . . . . . . . Exploration | -11 -10 -10 -9 -9 -9 -8 -8 -8 -8 -8 -7 -7 -7 -7 -7 -7 -6 -6 -6 -6 -6 -6 -5 -5 -5 -5 -4 -4 -4 -4 -4 -3 -3 -2 -2 -1 -1 ------------- Run | Yrd Mat Min Mat Min Exi Min Mat Gar Mat Gar Fac Was Fac Gar Fac Gar Fac Was Fac Gar Fac Gar Fac Was Fac Gar Fac Gar Fac Arm Lab Res Tes Res DSF Acc Com Turns Passed 39880 | 109 1359 2905 1604 924 1491 588 122 658 583 1583 456 1037 1671 2021 439 2064 294 188 1027 2174 964 1967 808 545 892 1121 640 1216 736 1654 53 1665 1087 462 294 1924 555 Spaces Moved 18496 | 54 621 698 823 489 675 343 68 309 285 757 214 426 921 963 196 947 161 87 545 1010 516 920 437 253 426 533 383 581 310 634 23 797 408 267 146 1009 261 Core 754 | 1 . 2 200 . . . . . . . . . . . . . . . . . . . . . . . . . . . . 205 60 . . 262 24 Treads 17742 | 53 621 696 623 489 675 343 68 309 285 757 214 426 921 963 196 947 161 87 545 1010 516 920 437 253 426 533 383 581 310 634 23 592 348 267 146 747 237 Legs . | . . . . . . . . . . . . . . . . . . . . . . . . . . . . . . . . . . . . . . Wheels . | . . . . . . . . . . . . . . . . . . . . . . . . . . . . . . . . . . . . . . Hover . | . . . . . . . . . . . . . . . . . . . . . . . . . . . . . . . . . . . . . . Flight . | . . . . . . . . . . . . . . . . . . . . . . . . . . . . . . . . . . . . . . Fastest Speed 50 | 50 160 160 50 160 160 160 160 160 160 160 200 160 160 160 160 160 160 160 160 160 160 160 160 160 170 145 145 156 156 145 237 50 50 156 157 50 50 Average Speed 162 | 157 174 217 133 160 182 160 160 160 160 160 200 207 160 162 160 160 160 160 160 160 160 160 160 175 170 152 150 156 156 154 237 144 181 159 157 138 158 Slowest Speed 600 | 160 240 600 160 200 200 160 160 160 160 160 200 240 160 166 160 160 160 160 160 160 240 160 160 255 170 170 156 156 156 237 237 250 250 160 158 225 223 Overloaded Moves . | . . . . . . . . . . . . . . . . . . . . . . . . . . . . . . . . . . . . . . Propulsion Burnouts . | . . . . . . . . . . . . . . . . . . . . . . . . . . . . . . . . . . . . . . Robots Hopped . | . . . . . . . . . . . . . . . . . . . . . . . . . . . . . . . . . . . . . . Potential Cave-ins 11 | . . 2 . . . . . . . . . . . . . . . . . . . . . . . . . . . 2 . . . . . 7 . Cave-ins Triggered 1 | . . 1 . . . . . . . . . . . . . . . . . . . . . . . . . . . . . . . . . . . Exploration Rate (%) 49 | 4 89 62 82 89 83 87 6 38 35 94 5 95 38 82 11 89 8 74 19 85 24 86 21 95 20 59 20 66 14 60 6 31 47 8 92 29 15 Regions Visited 37 Branch Regions 8 Pre-discovered Areas 8 | . 2 1 2 . 1 . . . 2 . . . . . . . . . . . . . . . . . . . . . . . . . . . . Known Exits Taken 14 | . . 1 . . . 1 1 . 1 . . . 1 . 1 . . . 1 . 1 . . . 1 . 1 . 1 . . 1 1 1 . . . Unknown Exits Taken 8 | 1 1 . 1 1 1 . . . . . . . . . . . . . . . . . . . . . . . . 1 1 . . . . 1 . Scrap Searched 5 | . . 1 . 3 . 1 . . . . . . . . . . . . . . . . . . . . . . . . . . . . . . . Spaces Dug 552 | . 40 34 . 1 33 . . 2 18 26 . 7 6 6 . 4 . . 19 62 8 47 8 . 5 3 . 21 2 11 . 23 1 4 . 148 13 Terrain Destroyed 1616 | . 64 65 11 1 44 1 . 21 27 48 . 9 6 23 1 6 5 . 32 108 13 61 13 1 15 23 4 74 3 79 . 88 64 9 50 547 100 Melee 91 | . . 2 . 1 . . . 2 1 6 . . 6 6 . 4 . . 2 15 8 24 . . 2 . . . . . . . . . . 12 . Projectile 383 | . 2 . . . 11 1 . . . . . 9 . 15 1 2 5 . 30 15 5 20 13 1 13 23 4 28 3 77 . 27 17 9 . 47 5 AOE 1131 | . 62 63 11 . 33 . . 19 26 42 . . . . . . . . . 77 . 14 . . . . . 46 . . . 58 47 . 50 488 95 Terrain Rammed . | . . . . . . . . . . . . . . . . . . . . . . . . . . . . . . . . . . . . . . Walls Destroyed . | . . . . . . . . . . . . . . . . . . . . . . . . . . . . . . . . . . . . . . Machines Disabled . | . . . . . . . . . . . . . . . . . . . . . . . . . . . . . . . . . . . . . . Actions | -11 -10 -10 -9 -9 -9 -8 -8 -8 -8 -8 -7 -7 -7 -7 -7 -7 -6 -6 -6 -6 -6 -6 -5 -5 -5 -5 -4 -4 -4 -4 -4 -3 -3 -2 -2 -1 -1 --------- Run | Yrd Mat Min Mat Min Exi Min Mat Gar Mat Gar Fac Was Fac Gar Fac Gar Fac Was Fac Gar Fac Gar Fac Was Fac Gar Fac Gar Fac Arm Lab Res Tes Res DSF Acc Com Total 25300 | 68 778 2068 1236 548 842 361 79 381 351 942 234 561 1031 1194 261 1312 180 113 630 1397 607 1216 498 338 544 722 431 781 547 1049 23 1121 677 290 186 1338 365 Wait 3239 | . 63 1314 275 8 35 . . 14 7 15 1 74 41 44 6 200 2 . 6 126 16 42 2 52 64 67 16 78 214 173 . 45 156 . 7 51 25 Move 18470 | 54 620 696 822 488 674 342 68 308 285 756 214 425 920 962 196 946 161 86 545 1009 516 919 437 252 426 532 383 580 309 633 22 796 407 267 145 1008 261 Hop . | . . . . . . . . . . . . . . . . . . . . . . . . . . . . . . . . . . . . . . Pick Up 341 | 3 10 16 34 3 12 1 5 . 7 8 4 13 1 12 6 13 . 5 5 15 13 27 4 1 1 7 5 4 . 17 . 16 19 5 3 37 9 Fast Attach 139 | 7 1 . 9 . 3 . . . . . . 2 6 4 3 5 . 1 1 4 2 5 . 5 2 6 1 3 . 8 . 18 11 5 2 19 6 Attach 127 | . 2 3 6 3 4 . 2 1 1 2 2 . . 3 5 8 2 . 3 9 . 3 2 2 . . 3 . . 6 . 19 6 1 2 19 8 Detach 71 | . 1 . 6 . 1 . . . . . . 3 . 1 1 2 . . 1 4 . 3 . 2 1 1 . . . 2 . 12 7 . 2 15 6 Swap 535 | . 11 7 8 7 23 4 1 10 11 31 6 17 20 24 8 17 5 5 13 18 14 41 9 11 20 23 8 19 10 42 . 37 28 1 3 16 7 Drop 301 | . 1 10 24 . 20 3 2 . 8 12 1 16 4 12 3 7 . 5 1 7 12 32 3 6 2 11 4 7 . 18 1 16 5 2 6 26 14 Fire 1526 | 3 66 15 46 28 31 9 1 34 29 58 2 6 31 97 33 83 9 11 51 75 24 84 37 7 23 68 8 58 10 150 . 133 38 9 16 115 28 Melee 368 | . 2 2 2 9 39 2 . 14 3 44 4 5 6 32 . 30 1 . 3 45 9 60 2 . 3 2 . . . . . 19 . . . 29 1 Ram . | . . . . . . . . . . . . . . . . . . . . . . . . . . . . . . . . . . . . . . Kick . | . . . . . . . . . . . . . . . . . . . . . . . . . . . . . . . . . . . . . . Crush 34 | 1 1 . 4 2 . . . . . . . . 2 2 . 1 . . 1 . 1 . 2 . 2 . 3 . 2 . . 7 . . . 3 . Escape Stasis 1 | . . 1 . . . . . . . . . . . . . . . . . . . . . . . . . . . . . . . . . . . Rewire 144 | . . . . . . . . . . 16 . . . 1 . . . . . 85 . . . . . 5 . 32 2 . . 3 . . . . . Trap 4 | . . 4 . . . . . . . . . . . . . . . . . . . . . . . . . . . . . . . . . . . Miscellaneous . | . . . . . . . . . . . . . . . . . . . . . . . . . . . . . . . . . . . . . . Route ------- -11/Scrapyard -10/Materials (discovered 5 exits: *Mat x3 / [*Min] / *Sub) -10/Mines (discovered 2 exits: *Mat x2) -9/Materials (discovered 5 exits: *Mat x3 / *Min / [*Sto]) -9/Mines (discovered 3 exits: *Mat x2 / *Exi) -9/Exiles -8/Mines (discovered 2 exits: *Mat x2) -8/Materials (discovered 2 exits: Fac / Gar) -8/Garrison (discovered 3 exits: *Mat x3) -8/Materials (discovered 2 exits: Fac / Gar) -8/Garrison (discovered 3 exits: *Fac x3) -7/Factory -7/Waste -7/Factory (discovered 5 exits: [*Fac x2] / Low x2 / Gar) -7/Garrison (discovered 3 exits: *Fac x3) -7/Factory -7/Garrison (discovered 3 exits: [*Fac x3]) -6/Factory (discovered 2 exits: *Fac / [*Low]) -6/Waste -6/Factory -6/Garrison (discovered 4 exits: *Fac x3 / *Fac) -6/Factory (discovered 3 exits: *Fac / [*Low] / Gar) -6/Garrison (discovered 3 exits: *Fac x3) -5/Factory -5/Waste -5/Factory (discovered 2 exits: *Fac / Gar) -5/Garrison (discovered 4 exits: *Fac x3 / [Fac]) -4/Factory (discovered 3 exits: *Res x2 / Gar) -4/Garrison (discovered 4 exits: *Fac x4) -4/Factory (discovered 3 exits: Upp x2 / *Arm) -4/Armory -4/Lab -3/Research -3/Testing -2/Research -2/DSF -1/Access -1/Command (discovered 1 exit: [*Sur]) History --------- Turn | Location | Event 31 | -11/Scrapyard | Discovered new exit (range 16) 110 | -11/Scrapyard | Entered Materials 267 | -10/Materials | Discovered new exit (range 16) 316 | -10/Materials | Build established: Mutant 775 | -10/Materials | Discovered new exit (range 10) 793 | -10/Materials | Identified exit to Subcaves 825 | -10/Materials | Identified exit to Materials 847 | -10/Materials | Learned Storage stockpile data 863 | -10/Materials | Learned 4 Subcaves zone layouts 864 | -10/Materials | Learned Storage emergency access door positions 865 | -10/Materials | Learned location of Mines (-9) 866 | -10/Materials | Learned location of 2 exits from Subcaves 873 | -10/Materials | Learned 2 Mines zone layouts 891 | -10/Materials | Learned location of 2 exits from Subcaves 959 | -10/Materials | Discovered exit to Materials (range 16) 1469 | -10/Materials | Entered Mines 1482 | -10/Mines | Met a Derelict bent on vengeance 1782 | -10/Mines | Found a hidden stash of uninstalled traps 1849 | -10/Mines | Discovered exit to Materials (range 9) 2023 | -10/Mines | Discovered exit to Materials (range 10) 2027 | -10/Mines | YI-UF0 nonchalantly dropped a Grenade Launcher on the ground 3852 | -10/Mines | Destroyed YI-UF0 3869 | -10/Mines | Found Corrupted Prototype Storage 4113 | -10/Mines | Assembled infested the area 4362 | -10/Mines | Crushed by falling debris 4373 | -10/Mines | Identified YI-UF0's Bottomless Matter Pit 4374 | -10/Mines | System corruption reached 10% 4374 | -10/Mines | Entered Materials 4374 | -9/Materials | Evolved 2 slots: Propulsion x1, Weapon x1 4393 | -9/Materials | Lost 3 parts (1n1u1w) 4784 | -9/Materials | Discovered new exit (range 4) 5000 | -9/Materials | Discovered new exit (range 16) 5037 | -9/Materials | Discovered new exit (range 16) 5245 | -9/Materials | Build established: Scavenger-Tank 5338 | -9/Materials | Discovered new exit (range 16) 5537 | -9/Materials | Central database locked down 5648 | -9/Materials | Learned location of 1 exit from Storage 5702 | -9/Materials | Learned Storage security intel 5836 | -9/Materials | Learned Storage emergency access door positions 5947 | -9/Materials | Identified exit to Materials 5978 | -9/Materials | Entered Mines 6006 | -9/Mines | Excavation squad dispatched 6006 | -9/Mines | A large section of the Mines collapsed 6066 | -9/Mines | Learned location of 1 exit from Materials 6220 | -9/Mines | Found the Drone Emporium 6227 | -9/Mines | Found Prototype Device 6227 | -9/Mines | Identified Thief Drone Bay 6398 | -9/Mines | Learned Materials emergency access door positions 6399 | -9/Mines | Discovered exit to Materials (range 5) 6405 | -9/Mines | Build established: Scavenger-Gunner 6415 | -9/Mines | Deemed a non-threat by the Exiles lab entrance 6417 | -9/Mines | Discovered new exit (range 5) 6800 | -9/Mines | Discovered exit to Materials (range 7) 6902 | -9/Mines | Entered Exiles 6942 | -9/Exiles | Met 8R-AWN 6970 | -9/Exiles | Met EX-HEX 7011 | -9/Exiles | Met EX-BIN 7032 | -9/Exiles | Aligned with FarCom system 7034 | -9/Exiles | Given EX-Vault access code 7072 | -9/Exiles | Opened EX-Vault 7082 | -9/Exiles | Found 0b10 Alert Chip 7091 | -9/Exiles | Found AWS/Gauss 7126 | -9/Exiles | Warned to stay clear of 0b10 Research branches 7174 | -9/Exiles | Met EX-DEC 7180 | -9/Exiles | Learned location of Zion (-6) 7578 | -9/Exiles | Attacked by the Exiles 7656 | -9/Exiles | Build established: Mutant 7744 | -9/Exiles | Found 8R-AWN's Boregun 7807 | -9/Exiles | Destroyed 8R-AWN 7818 | -9/Exiles | Found Prototype Processor 7819 | -9/Exiles | Found AS-neutralizer No. 17b 8020 | -9/Exiles | Destroyed EX-DEC 8029 | -9/Exiles | Found Prototype Processor 8076 | -9/Exiles | Destroyed EX-BIN 8103 | -9/Exiles | Destroyed EX-HEX 8318 | -9/Exiles | Discovered new exit (range 14) 8393 | -9/Exiles | Entered Mines 8425 | -8/Mines | Found 8R-AWN's Boregun 8506 | -8/Mines | Discovered exit to Materials (range 14) 8969 | -8/Mines | Discovered exit to Materials (range 8) 8981 | -8/Mines | Entered Materials 8981 | -8/Materials | Evolved 2 slots: Propulsion x1, Utility x1 8982 | -8/Materials | Identified exit to Factory 9103 | -8/Materials | Identified exit to Garrison 9103 | -8/Materials | Entered Garrison 9139 | -8/Garrison | Triggered checkpoint 9194 | -8/Garrison | Garrison Relay disabled 9207 | -8/Garrison | Garrison Relay disabled 9323 | -8/Garrison | Destroyed 8 combat bots 9402 | -8/Garrison | Triggered checkpoint 9404 | -8/Garrison | Triggered checkpoint 9516 | -8/Garrison | Discovered new exit (range 10) 9605 | -8/Garrison | Triggered checkpoint 9674 | -8/Garrison | Discovered new exit (range 70) 9674 | -8/Garrison | Discovered new exit (range 35) 9674 | -8/Garrison | Discovered new exit (range 28) 9719 | -8/Garrison | Installed Relay Interface Framework 9761 | -8/Garrison | Entered Materials 9773 | -8/Materials | Identified Exp. Targeting Computer 10010 | -8/Materials | Learned location of 1 exit from Storage 10064 | -8/Materials | Learned Storage stockpile data 10107 | -8/Materials | Learned 4 Factory zone layouts 10138 | -8/Materials | Learned Storage stockpile data 10159 | -8/Materials | Learned Storage trap positions 10177 | -8/Materials | Learned 2 Lower Caves zone layouts 10244 | -8/Materials | Learned 4 Recycling zone layouts 10344 | -8/Materials | Identified exit to Garrison 10344 | -8/Materials | Entered Garrison 10344 | -8/Garrison | Accompanied by 1 ally 10400 | -8/Garrison | Triggered checkpoint 10424 | -8/Garrison | Triggered checkpoint 10431 | -8/Garrison | Garrison Relay disabled 10487 | -8/Garrison | Expanded RIF knowledge: Watcher Feeds 10625 | -8/Garrison | P-60 Hacker assimilated allied Trooper 3c 10718 | -8/Garrison | Triggered checkpoint 10736 | -8/Garrison | Triggered checkpoint 10785 | -8/Garrison | Garrison Relay disabled 11024 | -8/Garrison | Garrison Relay disabled 11056 | -8/Garrison | Triggered checkpoint 11073 | -8/Garrison | Discovered exit to Factory (range 11) 11085 | -8/Garrison | Build established: Scavenger-Mutant 11087 | -8/Garrison | Garrison Relay disabled 11248 | -8/Garrison | Triggered checkpoint 11322 | -8/Garrison | Triggered checkpoint 11454 | -8/Garrison | Triggered checkpoint 11460 | -8/Garrison | Garrison Relay disabled 11574 | -8/Garrison | Discovered exit to Factory (range 10) 11640 | -8/Garrison | Triggered checkpoint 11798 | -8/Garrison | Triggered checkpoint 11845 | -8/Garrison | Garrison Relay disabled 11880 | -8/Garrison | Discovered exit to Factory (range 14) 11927 | -8/Garrison | Entered Factory 11927 | -7/Factory | Evolved 2 slots: Power x1, Utility x1 11928 | -7/Factory | Identified exit to Lower Caves 12383 | -7/Factory | Sucked down chute 12383 | -7/Factory | Entered Waste 12384 | -7/Waste | Joined by Warlord forces that had cleared the area 12482 | -7/Waste | Found Imp. Powered Armor 12503 | -7/Waste | Found Broken Quantum Capacitor 12701 | -7/Waste | Discovered new exit (range 14) 12857 | -7/Waste | Found Broken Imp. Powered Armor 13194 | -7/Waste | Build established: Scavenger-Tank 13420 | -7/Waste | Entered Factory 13420 | -7/Factory | Accompanied by 19 allies 13580 | -7/Factory | Lost 3 allies 13773 | -7/Factory | P-60 Hacker assimilated allied BU-IJQ(s) 14047 | -7/Factory | Lost 5 allies 14130 | -7/Factory | Discovered new exit (range 7) 14194 | -7/Factory | Identified Exp. Core Analyzer 15001 | -7/Factory | Discovered new exit (range 15) 15080 | -7/Factory | Identified exit to Garrison 15091 | -7/Factory | Entered Garrison 15091 | -7/Garrison | Accompanied by 6 allies 15127 | -7/Garrison | Triggered checkpoint 15154 | -7/Garrison | Garrison Relay disabled 15219 | -7/Garrison | Triggered checkpoint 15257 | -7/Garrison | Triggered checkpoint 15269 | -7/Garrison | Triggered checkpoint 15272 | -7/Garrison | Triggered checkpoint 15314 | -7/Garrison | Lost 4 allies 15558 | -7/Garrison | Warlord forces raided the area 15574 | -7/Garrison | Expanded RIF knowledge: Signal Jamming 15630 | -7/Garrison | Discovered new exit (range 10) 15703 | -7/Garrison | Triggered checkpoint 15734 | -7/Garrison | Garrison Relay disabled 15915 | -7/Garrison | Triggered checkpoint 15960 | -7/Garrison | Rescued a captive Derelict 15960 | -7/Garrison | Rescued a captive Derelict 16051 | -7/Garrison | Triggered checkpoint 16096 | -7/Garrison | Discovered new exit (range 3) 16441 | -7/Garrison | Garrison Relay disabled 16455 | -7/Garrison | Triggered checkpoint 16543 | -7/Garrison | Discovered new exit (range 10) 16794 | -7/Garrison | P-70 Sage assimilated allied 7J-8YM(h) 16841 | -7/Garrison | System corruption reached 10% 16886 | -7/Garrison | Expanded RIF knowledge: Robot Detection 17112 | -7/Garrison | Entered Factory 17551 | -7/Factory | Identified exit to Garrison 17551 | -7/Factory | Entered Garrison 17569 | -7/Garrison | Triggered checkpoint 17688 | -7/Garrison | Garrison Relay disabled 17691 | -7/Garrison | Triggered checkpoint 17713 | -7/Garrison | Build established: Tank 17861 | -7/Garrison | Triggered checkpoint 17903 | -7/Garrison | Triggered checkpoint 17932 | -7/Garrison | Destroyed 7 combat bots 17987 | -7/Garrison | Triggered checkpoint 18010 | -7/Garrison | Heavy support dispatched to Factory 18052 | -7/Garrison | Garrison Relay disabled 18098 | -7/Garrison | Build established: Bothacker-Tank 18109 | -7/Garrison | Discovered new exit (range 10) 18133 | -7/Garrison | Expanded RIF knowledge: Code Merge 18207 | -7/Garrison | Triggered checkpoint 18372 | -7/Garrison | Heavy support dispatched to Factory 18384 | -7/Garrison | Discovered new exit (range 8) 18416 | -7/Garrison | Heavy support dispatched to Factory 18428 | -7/Garrison | Heavy support dispatched to Factory 18493 | -7/Garrison | Triggered checkpoint 18524 | -7/Garrison | Garrison Relay disabled 18593 | -7/Garrison | Heavy support dispatched to Factory 18625 | -7/Garrison | Triggered checkpoint 18682 | -7/Garrison | Build established: Bothacker-Mutant 18700 | -7/Garrison | Garrison Relay disabled 18818 | -7/Garrison | Spotted B-75 Beast 19015 | -7/Garrison | Build established: Botlord-Mutant 19031 | -7/Garrison | Discovered new exit (range 15) 19052 | -7/Garrison | H-XX Assembler disabled 19287 | -7/Garrison | Rescued a captive Derelict 19287 | -7/Garrison | Rescued a captive Derelict 19534 | -7/Garrison | Expanded RIF knowledge: Patrol Navigation 19615 | -7/Garrison | Entered Factory 19615 | -6/Factory | Accompanied by 2 allies 19615 | -6/Factory | Evolved 2 slots: Utility x2 19656 | -6/Factory | Discovered new exit (range 36) 19674 | -6/Factory | Discovered new exit (range 15) 19909 | -6/Factory | Sucked down chute 19909 | -6/Factory | Entered Waste 19910 | -6/Waste | Met a frightened Derelict 19922 | -6/Waste | Spotted C-40 Crusher 19924 | -6/Waste | EMP discharged 19936 | -6/Waste | Spotted C-40 Crusher 19938 | -6/Waste | Spotted C-40 Crusher 19944 | -6/Waste | Destroyed C-40 Crusher 19944 | -6/Waste | Destroyed C-40 Crusher 19944 | -6/Waste | Destroyed C-40 Crusher 19949 | -6/Waste | Spotted C-40 Crusher 19952 | -6/Waste | Spotted C-40 Crusher 19959 | -6/Waste | Destroyed C-40 Crusher 19963 | -6/Waste | Build established: Botlord-Tank 19968 | -6/Waste | Destroyed C-40 Crusher 19976 | -6/Waste | Spotted C-40 Crusher 20023 | -6/Waste | Destroyed C-40 Crusher 20024 | -6/Waste | EMP discharged 20024 | -6/Waste | System corruption reached 10% 20044 | -6/Waste | Discovered new exit (range 16) 20097 | -6/Waste | Entered Factory 20097 | -6/Factory | Accompanied by 1 ally 21051 | -6/Factory | Watched by a mysterious "MATRIX" hacker. 21124 | -6/Factory | Identified exit to Garrison 21124 | -6/Factory | Entered Garrison 21218 | -6/Garrison | Triggered checkpoint 21245 | -6/Garrison | Garrison Relay disabled 21279 | -6/Garrison | Garrison Relay disabled 21444 | -6/Garrison | Triggered checkpoint 21476 | -6/Garrison | Build established: Scavenger-Mutant 21496 | -6/Garrison | Destroyed 10 combat bots 21565 | -6/Garrison | Discovered new exit (range 10) 21589 | -6/Garrison | Spotted B-75 Beast 21607 | -6/Garrison | Destroyed B-75 Beast 21708 | -6/Garrison | Rewired B-75 Beast 21739 | -6/Garrison | Rewired B-75 Beast 21848 | -6/Garrison | Triggered checkpoint 21919 | -6/Garrison | Triggered checkpoint 21941 | -6/Garrison | Triggered checkpoint 21970 | -6/Garrison | Destroyed 9 combat bots 22043 | -6/Garrison | Expanded RIF knowledge: Coupler Efficiency 22086 | -6/Garrison | Triggered checkpoint 22103 | -6/Garrison | Learned Factory security intel 22127 | -6/Garrison | Garrison Relay disabled 22270 | -6/Garrison | Destroyed Beast 5a 22307 | -6/Garrison | Discovered new exit (range 12) 22340 | -6/Garrison | Triggered checkpoint 22357 | -6/Garrison | Discovered new exit (range 5) 22615 | -6/Garrison | Discovered new exit (range 14) 22648 | -6/Garrison | Triggered checkpoint 22675 | -6/Garrison | Garrison Relay disabled 23298 | -6/Garrison | Entered Factory 23298 | -6/Factory | Accompanied by 4 allies 23486 | -6/Factory | Destroyed Beast 5b 23586 | -6/Factory | Fabricated Imp. Remote Shield (x2) 23732 | -6/Factory | Allied Derelicts emerged from ambush trap array 23766 | -6/Factory | Build established: Botlord-Mutant 23778 | -6/Factory | Discovered new exit (range 29) 24079 | -6/Factory | Discovered new exit (range 16) 24256 | -6/Factory | Identified exit to Garrison 24262 | -6/Factory | Entered Garrison 24262 | -6/Garrison | Accompanied by 3 allies 24649 | -6/Garrison | Garrison Relay disabled 24823 | -6/Garrison | Triggered checkpoint 24824 | -6/Garrison | Triggered checkpoint 24858 | -6/Garrison | Triggered checkpoint 24886 | -6/Garrison | Lost 4 allies 24930 | -6/Garrison | Discovered new exit (range 15) 25020 | -6/Garrison | Triggered checkpoint 25045 | -6/Garrison | Garrison Relay disabled 25140 | -6/Garrison | Triggered checkpoint 25257 | -6/Garrison | Spotted Executioner 25277 | -6/Garrison | Spotted Executioner 25305 | -6/Garrison | Destroyed Executioner 25311 | -6/Garrison | Destroyed Executioner 25328 | -6/Garrison | Found Exp. Core Analyzer 25346 | -6/Garrison | Found Prototype Device 25346 | -6/Garrison | Identified Adv. Kinecellerator 25351 | -6/Garrison | Found Exp. Targeting Computer 25435 | -6/Garrison | Discovered new exit (range 12) 25456 | -6/Garrison | Triggered checkpoint 25511 | -6/Garrison | Garrison Relay disabled 25692 | -6/Garrison | Triggered checkpoint 25716 | -6/Garrison | Garrison Relay disabled 25860 | -6/Garrison | Discovered new exit (range 12) 25886 | -6/Garrison | Triggered checkpoint 25909 | -6/Garrison | Garrison Relay disabled 25929 | -6/Garrison | Garrison Relay disabled 26061 | -6/Garrison | Expanded RIF knowledge: Autooverride 26229 | -6/Garrison | Entered Factory 26229 | -5/Factory | Accompanied by 5 allies 26229 | -5/Factory | Evolved 2 slots: Utility x2 26446 | -5/Factory | Spotted B-75 Beast 26590 | -5/Factory | Build established: Botlord-Tank 26684 | -5/Factory | Discovered new exit (range 11) 26829 | -5/Factory | First assault squad dispatched 27037 | -5/Factory | Sucked down chute 27037 | -5/Factory | Entered Waste 27037 | -5/Waste | The area was eerily silent 27037 | -5/Waste | Met up with 2 allies sucked down the chute earlier 27132 | -5/Waste | 6 allies followed down the chute 27420 | -5/Waste | Discovered new exit (range 12) 27582 | -5/Waste | Entered Factory 27582 | -5/Factory | Accompanied by 8 allies 27666 | -5/Factory | Discovered new exit (range 11) 27795 | -5/Factory | Build established: Botlord-Mutant 28153 | -5/Factory | P-70 Sage assimilated allied Soldier 5c 28422 | -5/Factory | Identified exit to Garrison 28474 | -5/Factory | Entered Garrison 28474 | -5/Garrison | Accompanied by 5 allies 28510 | -5/Garrison | Triggered checkpoint 28547 | -5/Garrison | Garrison Relay disabled 28614 | -5/Garrison | Expanded RIF knowledge: Zone Cloak 28746 | -5/Garrison | Discovered new exit (range 37) 28746 | -5/Garrison | Discovered new exit (range 64) 28746 | -5/Garrison | Discovered new exit (range 50) 28746 | -5/Garrison | Discovered new exit (range 56) 28946 | -5/Garrison | Triggered checkpoint 28996 | -5/Garrison | Triggered checkpoint 29020 | -5/Garrison | Triggered checkpoint 29063 | -5/Garrison | Lost 3 allies 29128 | -5/Garrison | Triggered checkpoint 29130 | -5/Garrison | Build established: Botlord-Tank 29146 | -5/Garrison | Garrison Relay disabled 29258 | -5/Garrison | Triggered checkpoint 29281 | -5/Garrison | Garrison Relay disabled 29317 | -5/Garrison | Expanded RIF knowledge: Hotswap 29595 | -5/Garrison | Entered Factory 29595 | -4/Factory | Accompanied by 5 allies 29595 | -4/Factory | Evolved 2 slots: Propulsion x2 29668 | -4/Factory | Discovered new exit (range 19) 29887 | -4/Factory | Allied Derelicts emerged from ambush trap array 29979 | -4/Factory | Identified exit to DSF 30095 | -4/Factory | First assault squad dispatched 30103 | -4/Factory | Lost 4 allies 30104 | -4/Factory | Found Adv. EM Shield 30209 | -4/Factory | Discovered new exit (range 22) 30235 | -4/Factory | Identified exit to Garrison 30235 | -4/Factory | Entered Garrison 30248 | -4/Garrison | Lost 4 allies 30267 | -4/Garrison | Expanded RIF knowledge: Crosswire 30369 | -4/Garrison | Triggered checkpoint 30374 | -4/Garrison | Triggered checkpoint 30386 | -4/Garrison | Triggered checkpoint 30428 | -4/Garrison | Destroyed 12 combat bots 30505 | -4/Garrison | Discovered new exit (range 9) 30531 | -4/Garrison | Triggered checkpoint 30551 | -4/Garrison | Discovered new exit (range 5) 30721 | -4/Garrison | Triggered checkpoint 30852 | -4/Garrison | Discovered new exit (range 49) 30852 | -4/Garrison | Discovered new exit (range 12) 30852 | -4/Garrison | Discovered new exit (range 43) 30852 | -4/Garrison | Discovered new exit (range 57) 30885 | -4/Garrison | Triggered checkpoint 30921 | -4/Garrison | Garrison Relay disabled 31451 | -4/Garrison | Entered Factory 31451 | -4/Factory | Accompanied by 5 allies 31789 | -4/Factory | Identified exit to Upper Caves 31789 | -4/Factory | Identified exit to Armory 31951 | -4/Factory | First assault squad dispatched 32023 | -4/Factory | Lost 3 allies 32187 | -4/Factory | Entered Armory 32187 | -4/Armory | Accompanied by 1 ally 32405 | -4/Armory | Found Gamma Bomb Array 32410 | -4/Armory | Found Fusion Bomb Launcher 32584 | -4/Armory | P-70 Sage assimilated allied Warden 7a 32699 | -4/Armory | Spotted B-86 Titan 32823 | -4/Armory | Fabricated Adv. Heavy Siege Treads (x1) 33187 | -4/Armory | First assault squad dispatched 33188 | -4/Armory | Unchained authorized (BL-1NK) 33222 | -4/Armory | Discovered new exit (range 3) 33632 | -4/Armory | Lost 3 allies 33639 | -4/Armory | Destroyed 9 combat bots 33666 | -4/Armory | System corruption reached 10% 33841 | -4/Armory | Entered Lab 33841 | -4/Lab | Discovered new exit (range 9) 33870 | -4/Lab | Unable to decrypt terminal 33889 | -4/Lab | Unable to decrypt terminal 33893 | -4/Lab | Build established: Tank 33894 | -4/Lab | Entered Research 33894 | -3/Research | Evolved 2 slots: Power x1, Utility x1 34437 | -3/Research | Build established: Botlord-Mutant 34678 | -3/Research | Spotted B-86 Titan 34872 | -3/Research | Lost 3 allies 34884 | -3/Research | Destroyed B-86 Titan 35111 | -3/Research | Spotted B-86 Titan 35181 | -3/Research | Cargo convoy interrupted 35185 | -3/Research | Spotted Striker 35204 | -3/Research | Destroyed Striker 35208 | -3/Research | System corruption reached 10% 35223 | -3/Research | Garrison activated, responded to threat 35225 | -3/Research | Destroyed 9 combat bots 35279 | -3/Research | Lost 13 parts (3p6n2u2w) 35400 | -3/Research | Found Prototype Device 35400 | -3/Research | Identified Exp. Thermal Defense Suite 35411 | -3/Research | Found Prototype Processor 35411 | -3/Research | Identified Exp. Signal Interpreter 35418 | -3/Research | Found Prototype Device 35418 | -3/Research | Identified System Purifier 35458 | -3/Research | Build established: Scavenger-Mutant 35469 | -3/Research | Core integrity fell below 50% 35551 | -3/Research | Discovered new exit (range 7) 35553 | -3/Research | Identified exit to Testing 35559 | -3/Research | Entered Testing 35732 | -3/Testing | Found Exp. Targeting Computer 35738 | -3/Testing | Found Faulty Exp. Targeting Computer 35948 | -3/Testing | Build established: Gunner 36023 | -3/Testing | Found Prototype Energy Cannon 36023 | -3/Testing | Identified Null Cannon 36085 | -3/Testing | Discovered new exit (range 3) 36087 | -3/Testing | Identified exit to Research 36277 | -3/Testing | Found Prototype Energy Cannon 36280 | -3/Testing | Found Prototype Energy Cannon 36320 | -3/Testing | Unchained authorized (BL-1NK) 36370 | -3/Testing | Identified Imp. Potential Cannon (x2) 36410 | -3/Testing | Build established: Scavenger-Gunner 36567 | -3/Testing | Destroyed BL-1NK 36646 | -3/Testing | Entered Research 36646 | -2/Research | Evolved 2 slots: Utility x2 36850 | -2/Research | Unchained authorized (QV-33N) 37108 | -2/Research | Identified exit to DSF 37108 | -2/Research | Entered DSF 37163 | -2/DSF | Additional patrols routed to DSF 37344 | -2/DSF | Discovered new exit (range 17) 37351 | -2/DSF | Sterilization system engaged 37371 | -2/DSF | Ambient heat levels rising (+10) 37375 | -2/DSF | Destroyed 8 combat bots 37386 | -2/DSF | Ambient heat levels rising (+10) 37401 | -2/DSF | Ambient heat levels rising (+10) 37402 | -2/DSF | Entered Access 37402 | -1/Access | Evolved 2 slots: Utility x2 37554 | -1/Access | Unchained authorized (QV-33N) 37925 | -1/Access | Build established: Scavenger-Mutant 38256 | -1/Access | System corruption reached 10% 38287 | -1/Access | Lost 3 parts (3u) 38402 | -1/Access | First assault squad dispatched 38431 | -1/Access | Destroyed 9 combat bots 38480 | -1/Access | Build established: Botlord-Mutant 38505 | -1/Access | Lost 5 parts (1p2n1u1w) 38617 | -1/Access | Destroyed QV-33N 38747 | -1/Access | Found Unknown Protection 38747 | -1/Access | Identified Imp. Powered Armor 38784 | -1/Access | Spotted B-99 Colossus 38995 | -1/Access | Found Prototype Device 38995 | -1/Access | Identified Exp. Actuator Array 39227 | -1/Access | Spotted B-99 Colossus 39305 | -1/Access | Discovered new exit (range 9) 39326 | -1/Access | Entered Command 39493 | -1/Command | Build established: Scavenger-Mutant 39669 | -1/Command | Found Prototype Launcher 39819 | -1/Command | Spotted Striker 39819 | -1/Command | Spotted Executioner 39819 | -1/Command | Spotted Executioner 39826 | -1/Command | First assault squad dispatched 39835 | -1/Command | Spotted Alpha 7 39839 | -1/Command | Spotted B-99 Colossus 39843 | -1/Command | Destroyed Executioner 39849 | -1/Command | Destroyed Striker 39855 | -1/Command | Spotted Alpha 7 39855 | -1/Command | Spotted Executioner 39855 | -1/Command | Spotted Executioner 39855 | -1/Command | Spotted Striker 39859 | -1/Command | Spotted B-99 Colossus 39870 | -1/Command | Core integrity fell below 50% 39873 | -1/Command | Core integrity fell below 20% 39875 | -1/Command | Discovered new exit (range 15) 39881 | -1/Command | Destroyed by B-99 Colossus with Multirail Last Messages --------------- 39875_ K-01 Serf collects debris. 39875_ Penetrated by Slug. 39875_ Med. Treads+ destroyed. 39875_ Slug penetrates Reinforced Barrier. 39876_ Slug penetrates B-99 Colossus. 39877_ K-01 Serf collects debris. 39878_ Med. Treads+ destroyed. 39878_ Critical hit (Blast). 39878_ Knocked back. 39878_ Penetrated by Slug. 39878_ Slug penetrates Reinforced Barrier. 39878_ Penetrated by Slug. 39878_ Slug penetrates Reinforced Barrier. 39878_ Penetrated by Slug. 39878_ Slug penetrates Reinforced Barrier. 39878_ Penetrated by Slug. 39879_ Acquired 3 matter. 39879_ The Access Shell folds into the floor. 39879_ K-01 Serf collects debris. 39881_ Knocked back. Map ----- +----------------------------------------------------+ | ?????# #### #%%!! #????????????? | | ?????# #??# /[%%% #????????????? | | ?????# #??#! #!|%[! % #????????????? | | ?????# #?##! #|] #### #????????????? | | ??######+#####" ! "*/[!#??# %#????????????? | | ??# + "][* #### #????????????? | | ??# # "]] # ####### #????????????? | | ??# # "% "##?????? #????????????? | | ??# ######## " ##??????#????????????? | | ??# #??????# %" #???????????????????? | | ??# [ """" #?????##//;/;;#????????????????????? | | ??# """" #?????# 7 ##???????????????????? | | ??# """" #????## 7 #???????????????????? | | ??# """" #????# #???????????????????? | | ??# #????##EE % #???????????????????? | | ??# #????# % ! % #???????????????????? | | ??# """Y""" #????##^ =% #???????????????????? | | ??# """"""" #????# % #???????????????????? | | ??####??#######????##^ #???????????????????? | | ???????????????????# ^ BBBBK ##??????????????????? | | ?????????????????#### BBBB;;;#??????????????????? | | ?????????????????# #??????????????????? | | ?????????????????# % #??????????????????? | | ?????????????????# #??????????????????? | | ?????????????????# #??????????????????? | | ?????????????????# @ #??????????????????? | | ?????????????????# "" #??????????????????? | | ?????????????????# "< #??????????????????? | | ?????????????????# #??????????????????? | | ?????????????????# #??????????????????? | | ?????????????????# #??????????????????? | | ?????????????????# #??????????????????? | | ?????????????????# #??????????????????? | | ?????????????????##############??????????????????? | | ?????????????????????????????????????????????????? | | ?????????????????????????????????????????????????? | | ?????????????????????????????????????????????????? | | ?????????????????????????????????????????????????? | | ?????????????????????????????????????????????????? | | ?????????????????????????????????????????????????? | | ?????????????????????????????????????????????????? | | ?????????????????????????????????????????????????? | | ?????????????????????????????????????????????????? | | ?????????????????????????????????????????????????? | | ?????????????????????????????????????????????????? | | ?????????????????????????????????????????????????? | | ?????????????????????????????????????????????????? | | ?????????????????????????????????????????????????? | | ?????????????????????????????????????????????????? | | ?????????????????????????????????????????????????? | +----------------------------------------------------+ Best States ------------- Heat Dissipation 90 Coolant Potential 120 Energy Generation 97 Energy Capacity 2640 Matter Stores 300 Matter Capacity 300 Sight Range 23 Terrain Scan Range 20 Terrain Scan Density 10 ECM Strength 1 Cloak Strength 4 Power Amplification 40 Additional Mass Support 6 Armor Coverage 1200 Resistance: EX 50 Resistance: EM 50 Weapon Shielding 90 Weapon Cycling 25 Evasion (%) 50 Targeting Accuracy 32 Core Analysis 12 Armor Integrity Analysis 40 Recoil Reduction 6 Offensive Hacking 10 Defensive Hacking 10 Relay Coupler Types 7 Relay Coupler Value 290 Item Schematics ----------------- Huge Storage Unit | -10/Materials | Hacked Hcp. Storage Unit | -10/Materials | Hacked Com. HERF Cannon | -6/Factory | Scanalyzed Arm. Heavy Treads | -2/Research | Scanalyzed Robot Schematics ------------------ None Fabricated ------------ Imp. Remote Shield | x2 | -6/Factory | Preloaded Adv. Heavy Siege Treads | x1 | -4/Armory | Preloaded Repaired ---------- Nothing Studied --------- Lgt. Treads | -9/Materials | Hacked Hvy. Assault Rifle | -9/Materials | Hacked Katana | -8/Materials | Hacked Coil Gun | -7/Factory | Hacked Hyb. Deuterium Engine | -6/Factory | Hacked Arm. Heavy Treads | -3/Testing | Hacked Enh. Nova Cannon | -2/Research | Hacked Lgt. Quantum Reactor | -2/Research | Hacked Med. Treads | -2/Research | Hacked Alien Tech Used ----------------- None Achievements -------------- Hot Goods Challenges ------------ None Game ------ Seed GrapheneRocketJets Manual? 0 Play Time 05:41:28 Cumulative 1187.5 hours Start 2026.05.01 @ 00:01:26 End 2026.05.01 @ 15:59:14 Sessions 5 Manual Loads 0 Difficulty Rogue Special Mode None Game No. 370 Rogue 368 Adventurer 2 Explorer 0 Win Type - Total 92 Types 26/22/20/1/1/1/15/2/1/3 Lore% 98 Gallery% 92 Achievement% 88 Wizard Run 0 Options --------- Layout 0 ASCII 0 Keyboard 1 Movement Numpad Keybinds 0 Fullscreen 1 Font 24/Smallcaps Map View 76x50 Zoom Use 0% Tactical HUD 1 Map Filters NONE Filters NONE Steam 1 RUN: 4b754308-cffe-4e1e-87a7-f3b7bb9d9477